Workbook

Sheet 60-T1
A1: Distance (mm) | B1: Force Data (N) | D1: Guage Length | E1: 25 | G1: Strain | H1: Stress(Pa)
A2: 0 | B2: 0 | D2: Cross sectional area (mm2) | E2: 5 | G2: =-A2/$E$1 -> 0 | H2: =-(B2/$E$3) -> 0
A3: -0.01 | B3: 0 | D3: Cross sectional area (m2) | E3: 5e-06 | G3: =-A3/$E$1 -> 0.0004 | H3: =-(B3/$E$3) -> 0
A4: -0.02 | B4: 0 | G4: =-A4/$E$1 -> 0.0008 | H4: =-(B4/$E$3) -> 0
A5: -0.04 | B5: 0 | D5: Dataset Size | E5: 3383 | G5: =-A5/$E$1 -> 0.0016 | H5: =-(B5/$E$3) -> 0
A6: -0.05 | B6: 0 | G6: =-A6/$E$1 -> 0.002 | H6: =-(B6/$E$3) -> 0
A7: -0.06 | B7: 0 | G7: =-A7/$E$1 -> 0.0024 | H7: =-(B7/$E$3) -> 0
A8: -0.07 | B8: 0 | G8: =-A8/$E$1 -> 0.0028 | H8: =-(B8/$E$3) -> 0
A9: -0.09 | B9: 0 | G9: =-A9/$E$1 -> 0.0036 | H9: =-(B9/$E$3) -> 0
A10: -0.11 | B10: 0 | G10: =-A10/$E$1 -> 0.0044 | H10: =-(B10/$E$3) -> 0
A11: -0.12 | B11: 0 | G11: =-A11/$E$1 -> 0.0048 | H11: =-(B11/$E$3) -> 0
A12: -0.15 | B12: -0.1 | G12: =-A12/$E$1 -> 0.006 | H12: =-(B12/$E$3) -> 20000
A13: -0.17 | B13: -0.1 | G13: =-A13/$E$1 -> 0.0068 | H13: =-(B13/$E$3) -> 20000
A14: -0.19 | B14: -0.1 | G14: =-A14/$E$1 -> 0.0076 | H14: =-(B14/$E$3) -> 20000
A15: -0.22 | B15: -0.2 | G15: =-A15/$E$1 -> 0.0088 | H15: =-(B15/$E$3) -> 40000
A16: -0.23 | B16: -0.2 | G16: =-A16/$E$1 -> 0.0092 | H16: =-(B16/$E$3) -> 40000
A17: -0.24 | B17: -0.2 | G17: =-A17/$E$1 -> 0.0096 | H17: =-(B17/$E$3) -> 40000
A18: -0.26 | B18: -0.3 | G18: =-A18/$E$1 -> 0.0104 | H18: =-(B18/$E$3) -> 60000
A19: -0.28 | B19: -0.3 | G19: =-A19/$E$1 -> 0.0112 | H19: =-(B19/$E$3) -> 60000
A20: -0.29 | B20: -0.3 | G20: =-A20/$E$1 -> 0.0116 | H20: =-(B20/$E$3) -> 60000
A21: -0.3 | B21: -0.3 | G21: =-A21/$E$1 -> 0.012 | H21: =-(B21/$E$3) -> 60000
A22: -0.31 | B22: -0.3 | G22: =-A22/$E$1 -> 0.0124 | H22: =-(B22/$E$3) -> 60000
A23: -0.33 | B23: -0.4 | G23: =-A23/$E$1 -> 0.0132 | H23: =-(B23/$E$3) -> 80000
A24: -0.34 | B24: -0.4 | G24: =-A24/$E$1 -> 0.0136 | H24: =-(B24/$E$3) -> 80000
A25: -0.35 | B25: -0.4 | G25: =-A25/$E$1 -> 0.014 | H25: =-(B25/$E$3) -> 80000
A26: -0.37 | B26: -0.4 | G26: =-A26/$E$1 -> 0.0148 | H26: =-(B26/$E$3) -> 80000
A27: -0.38 | B27: -0.4 | G27: =-A27/$E$1 -> 0.0152 | H27: =-(B27/$E$3) -> 80000
A28: -0.39 | B28: -0.5 | G28: =-A28/$E$1 -> 0.0156 | H28: =-(B28/$E$3) -> 100000
A29: -0.4 | B29: -0.5 | G29: =-A29/$E$1 -> 0.016 | H29: =-(B29/$E$3) -> 100000
A30: -0.41 | B30: -0.5 | G30: =-A30/$E$1 -> 0.0164 | H30: =-(B30/$E$3) -> 100000
A31: -0.43 | B31: -0.5 | G31: =-A31/$E$1 -> 0.0172 | H31: =-(B31/$E$3) -> 100000
A32: -0.44 | B32: -0.5 | G32: =-A32/$E$1 -> 0.0176 | H32: =-(B32/$E$3) -> 100000
A33: -0.45 | B33: -0.6 | G33: =-A33/$E$1 -> 0.018 | H33: =-(B33/$E$3) -> 120000
A34: -0.48 | B34: -0.6 | G34: =-A34/$E$1 -> 0.0192 | H34: =-(B34/$E$3) -> 120000
A35: -0.48 | B35: -0.6 | G35: =-A35/$E$1 -> 0.0192 | H35: =-(B35/$E$3) -> 120000
A36: -0.49 | B36: -0.6 | G36: =-A36/$E$1 -> 0.0196 | H36: =-(B36/$E$3) -> 120000
A37: -0.5 | B37: -0.7 | G37: =-A37/$E$1 -> 0.02 | H37: =-(B37/$E$3) -> 140000
A38: -0.52 | B38: -0.7 | G38: =-A38/$E$1 -> 0.0208 | H38: =-(B38/$E$3) -> 140000
A39: -0.53 | B39: -0.7 | G39: =-A39/$E$1 -> 0.0212 | H39: =-(B39/$E$3) -> 140000
A40: -0.55 | B40: -0.7 | G40: =-A40/$E$1 -> 0.022 | H40: =-(B40/$E$3) -> 140000
A41: -0.56 | B41: -0.7 | G41: =-A41/$E$1 -> 0.0224 | H41: =-(B41/$E$3) -> 140000
A42: -0.57 | B42: -0.7 | G42: =-A42/$E$1 -> 0.0228 | H42: =-(B42/$E$3) -> 140000
A43: -0.59 | B43: -0.8 | G43: =-A43/$E$1 -> 0.0236 | H43: =-(B43/$E$3) -> 160000
A44: -0.6 | B44: -0.8 | G44: =-A44/$E$1 -> 0.024 | H44: =-(B44/$E$3) -> 160000
A45: -0.61 | B45: -0.8 | G45: =-A45/$E$1 -> 0.0244 | H45: =-(B45/$E$3) -> 160000
A46: -0.63 | B46: -0.9 | G46: =-A46/$E$1 -> 0.0252 | H46: =-(B46/$E$3) -> 180000
A47: -0.64 | B47: -0.9 | G47: =-A47/$E$1 -> 0.0256 | H47: =-(B47/$E$3) -> 180000
A48: -0.66 | B48: -0.9 | G48: =-A48/$E$1 -> 0.0264 | H48: =-(B48/$E$3) -> 180000
A49: -0.67 | B49: -0.9 | G49: =-A49/$E$1 -> 0.0268 | H49: =-(B49/$E$3) -> 180000
A50: -0.68 | B50: -0.9 | G50: =-A50/$E$1 -> 0.0272 | H50: =-(B50/$E$3) -> 180000
A51: -0.71 | B51: -0.9 | G51: =-A51/$E$1 -> 0.0284 | H51: =-(B51/$E$3) -> 180000
A52: -0.72 | B52: -0.9 | G52: =-A52/$E$1 -> 0.0288 | H52: =-(B52/$E$3) -> 180000
A53: -0.73 | B53: -1 | G53: =-A53/$E$1 -> 0.0292 | H53: =-(B53/$E$3) -> 200000
A54: -0.75 | B54: -1 | G54: =-A54/$E$1 -> 0.03 | H54: =-(B54/$E$3) -> 200000
A55: -0.76 | B55: -1 | G55: =-A55/$E$1 -> 0.0304 | H55: =-(B55/$E$3) -> 200000
A56: -0.78 | B56: -1 | G56: =-A56/$E$1 -> 0.0312 | H56: =-(B56/$E$3) -> 200000
A57: -0.8 | B57: -1.1 | G57: =-A57/$E$1 -> 0.032 | H57: =-(B57/$E$3) -> 220000
A58: -0.81 | B58: -1.1 | G58: =-A58/$E$1 -> 0.0324 | H58: =-(B58/$E$3) -> 220000
A59: -0.82 | B59: -1.1 | G59: =-A59/$E$1 -> 0.0328 | H59: =-(B59/$E$3) -> 220000
A60: -0.84 | B60: -1.2 | G60: =-A60/$E$1 -> 0.0336 | H60: =-(B60/$E$3) -> 240000
A61: -0.85 | B61: -1.2 | G61: =-A61/$E$1 -> 0.034 | H61: =-(B61/$E$3) -> 240000
A62: -0.87 | B62: -1.2 | G62: =-A62/$E$1 -> 0.0348 | H62: =-(B62/$E$3) -> 240000
A63: -0.87 | B63: -1.2 | G63: =-A63/$E$1 -> 0.0348 | H63: =-(B63/$E$3) -> 240000
A64: -0.88 | B64: -1.2 | G64: =-A64/$E$1 -> 0.0352 | H64: =-(B64/$E$3) -> 240000
A65: -0.9 | B65: -1.3 | G65: =-A65/$E$1 -> 0.036 | H65: =-(B65/$E$3) -> 260000
A66: -0.91 | B66: -1.3 | G66: =-A66/$E$1 -> 0.0364 | H66: =-(B66/$E$3) -> 260000
A67: -0.92 | B67: -1.3 | G67: =-A67/$E$1 -> 0.0368 | H67: =-(B67/$E$3) -> 260000
A68: -0.92 | B68: -1.3 | G68: =-A68/$E$1 -> 0.0368 | H68: =-(B68/$E$3) -> 260000
A69: -0.94 | B69: -1.3 | G69: =-A69/$E$1 -> 0.0376 | H69: =-(B69/$E$3) -> 260000
A70: -0.97 | B70: -1.3 | G70: =-A70/$E$1 -> 0.0388 | H70: =-(B70/$E$3) -> 260000
A71: -0.97 | B71: -1.3 | G71: =-A71/$E$1 -> 0.0388 | H71: =-(B71/$E$3) -> 260000
A72: -0.98 | B72: -1.4 | G72: =-A72/$E$1 -> 0.0392 | H72: =-(B72/$E$3) -> 280000
A73: -1.01 | B73: -1.4 | G73: =-A73/$E$1 -> 0.0404 | H73: =-(B73/$E$3) -> 280000
A74: -1.01 | B74: -1.4 | G74: =-A74/$E$1 -> 0.0404 | H74: =-(B74/$E$3) -> 280000
A75: -1.02 | B75: -1.4 | G75: =-A75/$E$1 -> 0.0408 | H75: =-(B75/$E$3) -> 280000
A76: -1.05 | B76: -1.5 | G76: =-A76/$E$1 -> 0.042 | H76: =-(B76/$E$3) -> 300000
A77: -1.06 | B77: -1.5 | G77: =-A77/$E$1 -> 0.0424 | H77: =-(B77/$E$3) -> 300000
A78: -1.07 | B78: -1.5 | G78: =-A78/$E$1 -> 0.0428 | H78: =-(B78/$E$3) -> 300000
A79: -1.08 | B79: -1.5 | G79: =-A79/$E$1 -> 0.0432 | H79: =-(B79/$E$3) -> 300000
A80: -1.09 | B80: -1.5 | G80: =-A80/$E$1 -> 0.0436 | H80: =-(B80/$E$3) -> 300000
A81: -1.11 | B81: -1.6 | G81: =-A81/$E$1 -> 0.0444 | H81: =-(B81/$E$3) -> 320000
A82: -1.12 | B82: -1.6 | G82: =-A82/$E$1 -> 0.0448 | H82: =-(B82/$E$3) -> 320000
A83: -1.13 | B83: -1.6 | G83: =-A83/$E$1 -> 0.0452 | H83: =-(B83/$E$3) -> 320000
A84: -1.14 | B84: -1.6 | G84: =-A84/$E$1 -> 0.0456 | H84: =-(B84/$E$3) -> 320000
A85: -1.16 | B85: -1.6 | G85: =-A85/$E$1 -> 0.0464 | H85: =-(B85/$E$3) -> 320000
A86: -1.17 | B86: -1.6 | G86: =-A86/$E$1 -> 0.0468 | H86: =-(B86/$E$3) -> 320000
A87: -1.18 | B87: -1.6 | G87: =-A87/$E$1 -> 0.0472 | H87: =-(B87/$E$3) -> 320000
A88: -1.21 | B88: -1.7 | G88: =-A88/$E$1 -> 0.0484 | H88: =-(B88/$E$3) -> 340000
A89: -1.22 | B89: -1.7 | G89: =-A89/$E$1 -> 0.0488 | H89: =-(B89/$E$3) -> 340000
A90: -1.23 | B90: -1.7 | G90: =-A90/$E$1 -> 0.0492 | H90: =-(B90/$E$3) -> 340000
A91: -1.26 | B91: -1.8 | G91: =-A91/$E$1 -> 0.0504 | H91: =-(B91/$E$3) -> 360000
A92: -1.26 | B92: -1.8 | G92: =-A92/$E$1 -> 0.0504 | H92: =-(B92/$E$3) -> 360000
A93: -1.28 | B93: -1.8 | G93: =-A93/$E$1 -> 0.0512 | H93: =-(B93/$E$3) -> 360000
A94: -1.29 | B94: -1.8 | G94: =-A94/$E$1 -> 0.0516 | H94: =-(B94/$E$3) -> 360000
A95: -1.3 | B95: -1.8 | G95: =-A95/$E$1 -> 0.052 | H95: =-(B95/$E$3) -> 360000
A96: -1.31 | B96: -1.8 | G96: =-A96/$E$1 -> 0.0524 | H96: =-(B96/$E$3) -> 360000
A97: -1.32 | B97: -1.8 | G97: =-A97/$E$1 -> 0.0528 | H97: =-(B97/$E$3) -> 360000
A98: -1.33 | B98: -1.8 | G98: =-A98/$E$1 -> 0.0532 | H98: =-(B98/$E$3) -> 360000
A99: -1.36 | B99: -1.9 | G99: =-A99/$E$1 -> 0.0544 | H99: =-(B99/$E$3) -> 380000
A100: -1.37 | B100: -1.9 | G100: =-A100/$E$1 -> 0.0548 | H100: =-(B100/$E$3) -> 380000
A101: -1.39 | B101: -1.9 | G101: =-A101/$E$1 -> 0.0556 | H101: =-(B101/$E$3) -> 380000
A102: -1.4 | B102: -1.9 | G102: =-A102/$E$1 -> 0.056 | H102: =-(B102/$E$3) -> 380000
A103: -1.41 | B103: -1.9 | G103: =-A103/$E$1 -> 0.0564 | H103: =-(B103/$E$3) -> 380000
A104: -1.43 | B104: -2 | G104: =-A104/$E$1 -> 0.0572 | H104: =-(B104/$E$3) -> 400000
A105: -1.44 | B105: -2 | G105: =-A105/$E$1 -> 0.0576 | H105: =-(B105/$E$3) -> 400000
A106: -1.45 | B106: -2 | G106: =-A106/$E$1 -> 0.058 | H106: =-(B106/$E$3) -> 400000
A107: -1.47 | B107: -2 | G107: =-A107/$E$1 -> 0.0588 | H107: =-(B107/$E$3) -> 400000
A108: -1.49 | B108: -2.1 | G108: =-A108/$E$1 -> 0.0596 | H108: =-(B108/$E$3) -> 420000
A109: -1.5 | B109: -2 | G109: =-A109/$E$1 -> 0.06 | H109: =-(B109/$E$3) -> 400000
A110: -1.5 | B110: -2.1 | G110: =-A110/$E$1 -> 0.06 | H110: =-(B110/$E$3) -> 420000
A111: -1.52 | B111: -2.1 | G111: =-A111/$E$1 -> 0.0608 | H111: =-(B111/$E$3) -> 420000
A112: -1.54 | B112: -2.1 | G112: =-A112/$E$1 -> 0.0616 | H112: =-(B112/$E$3) -> 420000
A113: -1.55 | B113: -2.1 | G113: =-A113/$E$1 -> 0.062 | H113: =-(B113/$E$3) -> 420000
A114: -1.56 | B114: -2.1 | G114: =-A114/$E$1 -> 0.0624 | H114: =-(B114/$E$3) -> 420000
A115: -1.59 | B115: -2.1 | G115: =-A115/$E$1 -> 0.0636 | H115: =-(B115/$E$3) -> 420000
A116: -1.6 | B116: -2.1 | G116: =-A116/$E$1 -> 0.064 | H116: =-(B116/$E$3) -> 420000
A117: -1.6 | B117: -2.1 | G117: =-A117/$E$1 -> 0.064 | H117: =-(B117/$E$3) -> 420000
A118: -1.63 | B118: -2.2 | G118: =-A118/$E$1 -> 0.0652 | H118: =-(B118/$E$3) -> 440000
A119: -1.64 | B119: -2.2 | G119: =-A119/$E$1 -> 0.0656 | H119: =-(B119/$E$3) -> 440000
A120: -1.65 | B120: -2.2 | G120: =-A120/$E$1 -> 0.066 | H120: =-(B120/$E$3) -> 440000
A121: -1.67 | B121: -2.2 | G121: =-A121/$E$1 -> 0.0668 | H121: =-(B121/$E$3) -> 440000
A122: -1.68 | B122: -2.2 | G122: =-A122/$E$1 -> 0.0672 | H122: =-(B122/$E$3) -> 440000
A123: -1.7 | B123: -2.2 | G123: =-A123/$E$1 -> 0.068 | H123: =-(B123/$E$3) -> 440000
A124: -1.7 | B124: -2.3 | G124: =-A124/$E$1 -> 0.068 | H124: =-(B124/$E$3) -> 460000
A125: -1.71 | B125: -2.3 | G125: =-A125/$E$1 -> 0.0684 | H125: =-(B125/$E$3) -> 460000
A126: -1.75 | B126: -2.3 | G126: =-A126/$E$1 -> 0.07 | H126: =-(B126/$E$3) -> 460000
A127: -1.76 | B127: -2.3 | G127: =-A127/$E$1 -> 0.0704 | H127: =-(B127/$E$3) -> 460000
A128: -1.77 | B128: -2.3 | G128: =-A128/$E$1 -> 0.0708 | H128: =-(B128/$E$3) -> 460000
A129: -1.78 | B129: -2.3 | G129: =-A129/$E$1 -> 0.0712 | H129: =-(B129/$E$3) -> 460000
A130: -1.8 | B130: -2.3 | G130: =-A130/$E$1 -> 0.072 | H130: =-(B130/$E$3) -> 460000
A131: -1.8 | B131: -2.4 | G131: =-A131/$E$1 -> 0.072 | H131: =-(B131/$E$3) -> 480000
A132: -1.81 | B132: -2.4 | G132: =-A132/$E$1 -> 0.0724 | H132: =-(B132/$E$3) -> 480000
A133: -1.84 | B133: -2.4 | G133: =-A133/$E$1 -> 0.0736 | H133: =-(B133/$E$3) -> 480000
A134: -1.85 | B134: -2.4 | G134: =-A134/$E$1 -> 0.074 | H134: =-(B134/$E$3) -> 480000
A135: -1.86 | B135: -2.4 | G135: =-A135/$E$1 -> 0.0744 | H135: =-(B135/$E$3) -> 480000
A136: -1.87 | B136: -2.4 | G136: =-A136/$E$1 -> 0.0748 | H136: =-(B136/$E$3) -> 480000
A137: -1.89 | B137: -2.4 | G137: =-A137/$E$1 -> 0.0756 | H137: =-(B137/$E$3) -> 480000
A138: -1.89 | B138: -2.4 | G138: =-A138/$E$1 -> 0.0756 | H138: =-(B138/$E$3) -> 480000
A139: -1.9 | B139: -2.4 | G139: =-A139/$E$1 -> 0.076 | H139: =-(B139/$E$3) -> 480000
A140: -1.93 | B140: -2.5 | G140: =-A140/$E$1 -> 0.0772 | H140: =-(B140/$E$3) -> 500000
A141: -1.94 | B141: -2.5 | G141: =-A141/$E$1 -> 0.0776 | H141: =-(B141/$E$3) -> 500000
A142: -1.95 | B142: -2.5 | G142: =-A142/$E$1 -> 0.078 | H142: =-(B142/$E$3) -> 500000
A143: -1.96 | B143: -2.5 | G143: =-A143/$E$1 -> 0.0784 | H143: =-(B143/$E$3) -> 500000
A144: -1.98 | B144: -2.5 | G144: =-A144/$E$1 -> 0.0792 | H144: =-(B144/$E$3) -> 500000
A145: -1.99 | B145: -2.5 | G145: =-A145/$E$1 -> 0.0796 | H145: =-(B145/$E$3) -> 500000
A146: -2 | B146: -2.5 | G146: =-A146/$E$1 -> 0.08 | H146: =-(B146/$E$3) -> 500000
A147: -2.01 | B147: -2.5 | G147: =-A147/$E$1 -> 0.0804 | H147: =-(B147/$E$3) -> 500000
A148: -2.04 | B148: -2.5 | G148: =-A148/$E$1 -> 0.0816 | H148: =-(B148/$E$3) -> 500000
A149: -2.04 | B149: -2.6 | G149: =-A149/$E$1 -> 0.0816 | H149: =-(B149/$E$3) -> 520000
A150: -2.06 | B150: -2.6 | G150: =-A150/$E$1 -> 0.0824 | H150: =-(B150/$E$3) -> 520000
A151: -2.09 | B151: -2.6 | G151: =-A151/$E$1 -> 0.0836 | H151: =-(B151/$E$3) -> 520000
A152: -2.09 | B152: -2.6 | G152: =-A152/$E$1 -> 0.0836 | H152: =-(B152/$E$3) -> 520000
A153: -2.11 | B153: -2.6 | G153: =-A153/$E$1 -> 0.0844 | H153: =-(B153/$E$3) -> 520000
A154: -2.12 | B154: -2.6 | G154: =-A154/$E$1 -> 0.0848 | H154: =-(B154/$E$3) -> 520000
A155: -2.13 | B155: -2.6 | G155: =-A155/$E$1 -> 0.0852 | H155: =-(B155/$E$3) -> 520000
A156: -2.18 | B156: -2.6 | G156: =-A156/$E$1 -> 0.0872 | H156: =-(B156/$E$3) -> 520000
A157: -2.19 | B157: -2.7 | G157: =-A157/$E$1 -> 0.0876 | H157: =-(B157/$E$3) -> 540000
A158: -2.21 | B158: -2.7 | G158: =-A158/$E$1 -> 0.0884 | H158: =-(B158/$E$3) -> 540000
A159: -2.23 | B159: -2.7 | G159: =-A159/$E$1 -> 0.0892 | H159: =-(B159/$E$3) -> 540000
A160: -2.24 | B160: -2.7 | G160: =-A160/$E$1 -> 0.0896 | H160: =-(B160/$E$3) -> 540000
A161: -2.25 | B161: -2.7 | G161: =-A161/$E$1 -> 0.09 | H161: =-(B161/$E$3) -> 540000
A162: -2.26 | B162: -2.7 | G162: =-A162/$E$1 -> 0.0904 | H162: =-(B162/$E$3) -> 540000
A163: -2.28 | B163: -2.8 | G163: =-A163/$E$1 -> 0.0912 | H163: =-(B163/$E$3) -> 560000
A164: -2.31 | B164: -2.8 | G164: =-A164/$E$1 -> 0.0924 | H164: =-(B164/$E$3) -> 560000
A165: -2.32 | B165: -2.8 | G165: =-A165/$E$1 -> 0.0928 | H165: =-(B165/$E$3) -> 560000
A166: -2.33 | B166: -2.8 | G166: =-A166/$E$1 -> 0.0932 | H166: =-(B166/$E$3) -> 560000
A167: -2.34 | B167: -2.8 | G167: =-A167/$E$1 -> 0.0936 | H167: =-(B167/$E$3) -> 560000
A168: -2.36 | B168: -2.8 | G168: =-A168/$E$1 -> 0.0944 | H168: =-(B168/$E$3) -> 560000
A169: -2.37 | B169: -2.8 | G169: =-A169/$E$1 -> 0.0948 | H169: =-(B169/$E$3) -> 560000
A170: -2.38 | B170: -2.8 | G170: =-A170/$E$1 -> 0.0952 | H170: =-(B170/$E$3) -> 560000
A171: -2.38 | B171: -2.8 | G171: =-A171/$E$1 -> 0.0952 | H171: =-(B171/$E$3) -> 560000
A172: -2.4 | B172: -2.8 | G172: =-A172/$E$1 -> 0.096 | H172: =-(B172/$E$3) -> 560000
A173: -2.42 | B173: -2.9 | G173: =-A173/$E$1 -> 0.0968 | H173: =-(B173/$E$3) -> 580000
A174: -2.43 | B174: -2.9 | G174: =-A174/$E$1 -> 0.0972 | H174: =-(B174/$E$3) -> 580000
A175: -2.43 | B175: -2.9 | G175: =-A175/$E$1 -> 0.0972 | H175: =-(B175/$E$3) -> 580000
A176: -2.46 | B176: -2.9 | G176: =-A176/$E$1 -> 0.0984 | H176: =-(B176/$E$3) -> 580000
A177: -2.47 | B177: -2.9 | G177: =-A177/$E$1 -> 0.0988 | H177: =-(B177/$E$3) -> 580000
A178: -2.48 | B178: -2.9 | G178: =-A178/$E$1 -> 0.0992 | H178: =-(B178/$E$3) -> 580000
A179: -2.48 | B179: -2.9 | G179: =-A179/$E$1 -> 0.0992 | H179: =-(B179/$E$3) -> 580000
A180: -2.5 | B180: -2.9 | G180: =-A180/$E$1 -> 0.1 | H180: =-(B180/$E$3) -> 580000
A181: -2.52 | B181: -2.9 | G181: =-A181/$E$1 -> 0.1008 | H181: =-(B181/$E$3) -> 580000
A182: -2.54 | B182: -2.9 | G182: =-A182/$E$1 -> 0.1016 | H182: =-(B182/$E$3) -> 580000
A183: -2.56 | B183: -2.9 | G183: =-A183/$E$1 -> 0.1024 | H183: =-(B183/$E$3) -> 580000
A184: -2.58 | B184: -2.9 | G184: =-A184/$E$1 -> 0.1032 | H184: =-(B184/$E$3) -> 580000
A185: -2.59 | B185: -3 | G185: =-A185/$E$1 -> 0.1036 | H185: =-(B185/$E$3) -> 600000
A186: -2.6 | B186: -3 | G186: =-A186/$E$1 -> 0.104 | H186: =-(B186/$E$3) -> 600000
A187: -2.61 | B187: -3 | G187: =-A187/$E$1 -> 0.1044 | H187: =-(B187/$E$3) -> 600000
A188: -2.63 | B188: -3 | G188: =-A188/$E$1 -> 0.1052 | H188: =-(B188/$E$3) -> 600000
A189: -2.64 | B189: -3 | G189: =-A189/$E$1 -> 0.1056 | H189: =-(B189/$E$3) -> 600000
A190: -2.65 | B190: -3 | G190: =-A190/$E$1 -> 0.106 | H190: =-(B190/$E$3) -> 600000
A191: -2.67 | B191: -3 | G191: =-A191/$E$1 -> 0.1068 | H191: =-(B191/$E$3) -> 600000
A192: -2.68 | B192: -3 | G192: =-A192/$E$1 -> 0.1072 | H192: =-(B192/$E$3) -> 600000
A193: -2.68 | B193: -3 | G193: =-A193/$E$1 -> 0.1072 | H193: =-(B193/$E$3) -> 600000
A194: -2.71 | B194: -3 | G194: =-A194/$E$1 -> 0.1084 | H194: =-(B194/$E$3) -> 600000
A195: -2.72 | B195: -3 | G195: =-A195/$E$1 -> 0.1088 | H195: =-(B195/$E$3) -> 600000
A196: -2.73 | B196: -3 | G196: =-A196/$E$1 -> 0.1092 | H196: =-(B196/$E$3) -> 600000
A197: -2.74 | B197: -3 | G197: =-A197/$E$1 -> 0.1096 | H197: =-(B197/$E$3) -> 600000
A198: -2.75 | B198: -3 | G198: =-A198/$E$1 -> 0.11 | H198: =-(B198/$E$3) -> 600000
A199: -2.77 | B199: -3.1 | G199: =-A199/$E$1 -> 0.1108 | H199: =-(B199/$E$3) -> 620000
A200: -2.77 | B200: -3.1 | G200: =-A200/$E$1 -> 0.1108 | H200: =-(B200/$E$3) -> 620000
... 3183 more rows

Sheet 60-T2
A1: Distance (mm) | B1: Force Data (N) | D1: Guage Length | E1: 25 | G1: Strain | H1: Stress
A2: 35.54 | B2: -0.5 | D2: Cross sectional area (mm2) | E2: 5 | G2: =-A2/$E$1 -> -1.4216 | H2: =-B2/$E$3 -> 100000
A3: 35.54 | B3: -0.6 | D3: Cross sectional area (m2) | E3: 5e-06 | G3: =-A3/$E$1 -> -1.4216 | H3: =-B3/$E$3 -> 120000
A4: 35.52 | B4: -0.6 | G4: -1.4208 | H4: 120000
A5: 35.5 | B5: -0.6 | D5: Dataset Size | E5: 9515 | G5: -1.42 | H5: 120000
A6: 35.49 | B6: -0.6 | G6: -1.4196 | H6: 120000
A7: 35.48 | B7: -0.5 | G7: -1.4192 | H7: 100000
A8: 35.47 | B8: -0.6 | G8: -1.4188 | H8: 120000
A9: 35.46 | B9: -0.5 | G9: -1.4184 | H9: 100000
A10: 35.45 | B10: -0.5 | G10: -1.418 | H10: 100000
A11: 35.38 | B11: -0.6 | G11: -1.4152 | H11: 120000
A12: 35.35 | B12: -0.6 | G12: -1.414 | H12: 120000
A13: 35.34 | B13: -0.6 | G13: -1.4136 | H13: 120000
A14: 35.33 | B14: -0.6 | G14: -1.4132 | H14: 120000
A15: 35.3 | B15: -0.6 | G15: -1.412 | H15: 120000
A16: 35.29 | B16: -0.6 | G16: -1.4116 | H16: 120000
A17: 35.27 | B17: -0.6 | G17: -1.4108 | H17: 120000
A18: 35.26 | B18: -0.7 | G18: -1.4104 | H18: 140000
A19: 35.24 | B19: -0.7 | G19: -1.4096 | H19: 140000
A20: 35.21 | B20: -0.7 | G20: -1.4084 | H20: 140000
A21: 35.19 | B21: -0.7 | G21: -1.4076 | H21: 140000
A22: 35.18 | B22: -0.7 | G22: -1.4072 | H22: 140000
A23: 35.17 | B23: -0.7 | G23: -1.4068 | H23: 140000
A24: 35.15 | B24: -0.7 | G24: -1.406 | H24: 140000
A25: 35.14 | B25: -0.8 | G25: -1.4056 | H25: 160000
A26: 35.13 | B26: -0.8 | G26: -1.4052 | H26: 160000
A27: 35.1 | B27: -0.8 | G27: -1.404 | H27: 160000
A28: 35.08 | B28: -0.8 | G28: -1.4032 | H28: 160000
A29: 35.07 | B29: -0.8 | G29: -1.4028 | H29: 160000
A30: 35.05 | B30: -0.8 | G30: -1.402 | H30: 160000
A31: 35.02 | B31: -0.9 | G31: -1.4008 | H31: 180000
A32: 35.01 | B32: -0.9 | G32: -1.4004 | H32: 180000
A33: 35 | B33: -0.9 | G33: -1.4 | H33: 180000
A34: 34.98 | B34: -0.9 | G34: -1.3992 | H34: 180000
A35: 34.96 | B35: -0.9 | G35: -1.3984 | H35: 180000
A36: 34.93 | B36: -1 | G36: -1.3972 | H36: 200000
A37: 34.91 | B37: -1 | G37: -1.3964 | H37: 200000
A38: 34.9 | B38: -1 | G38: -1.396 | H38: 200000
A39: 34.89 | B39: -1 | G39: -1.3956 | H39: 200000
A40: 34.87 | B40: -1.1 | G40: -1.3948 | H40: 220000
A41: 34.86 | B41: -1.1 | G41: -1.3944 | H41: 220000
A42: 34.83 | B42: -1.1 | G42: -1.3932 | H42: 220000
A43: 34.82 | B43: -1.1 | G43: -1.3928 | H43: 220000
A44: 34.81 | B44: -1.1 | G44: -1.3924 | H44: 220000
A45: 34.8 | B45: -1.1 | G45: -1.392 | H45: 220000
A46: 34.79 | B46: -1.1 | G46: -1.3916 | H46: 220000
A47: 34.76 | B47: -1.2 | G47: -1.3904 | H47: 240000
A48: 34.75 | B48: -1.2 | G48: -1.39 | H48: 240000
A49: 34.73 | B49: -1.2 | G49: -1.3892 | H49: 240000
A50: 34.71 | B50: -1.2 | G50: -1.3884 | H50: 240000
A51: 34.7 | B51: -1.2 | G51: -1.388 | H51: 240000
A52: 34.67 | B52: -1.3 | G52: -1.3868 | H52: 260000
A53: 34.65 | B53: -1.3 | G53: -1.386 | H53: 260000
A54: 34.63 | B54: -1.3 | G54: -1.3852 | H54: 260000
A55: 34.6 | B55: -1.3 | G55: -1.384 | H55: 260000
A56: 34.59 | B56: -1.4 | G56: -1.3836 | H56: 280000
A57: 34.58 | B57: -1.4 | G57: -1.3832 | H57: 280000
A58: 34.55 | B58: -1.4 | G58: -1.382 | H58: 280000
A59: 34.54 | B59: -1.4 | G59: -1.3816 | H59: 280000
A60: 34.53 | B60: -1.4 | G60: -1.3812 | H60: 280000
A61: 34.52 | B61: -1.4 | G61: -1.3808 | H61: 280000
A62: 34.49 | B62: -1.5 | G62: -1.3796 | H62: 300000
A63: 34.48 | B63: -1.5 | G63: -1.3792 | H63: 300000
A64: 34.46 | B64: -1.5 | G64: -1.3784 | H64: 300000
A65: 34.45 | B65: -1.5 | G65: -1.378 | H65: 300000
A66: 34.44 | B66: -1.5 | G66: -1.3776 | H66: 300000
A67: 34.41 | B67: -1.5 | G67: =-A67/$E$1 -> -1.3764 | H67: =-B67/$E$3 -> 300000
A68: 34.4 | B68: -1.5 | G68: -1.376 | H68: 300000
A69: 34.39 | B69: -1.6 | G69: -1.3756 | H69: 320000
A70: 34.36 | B70: -1.6 | G70: -1.3744 | H70: 320000
A71: 34.35 | B71: -1.6 | G71: -1.374 | H71: 320000
A72: 34.33 | B72: -1.6 | G72: -1.3732 | H72: 320000
A73: 34.3 | B73: -1.7 | G73: -1.372 | H73: 340000
A74: 34.29 | B74: -1.7 | G74: -1.3716 | H74: 340000
A75: 34.28 | B75: -1.7 | G75: -1.3712 | H75: 340000
A76: 34.27 | B76: -1.7 | G76: -1.3708 | H76: 340000
A77: 34.24 | B77: -1.7 | G77: -1.3696 | H77: 340000
A78: 34.22 | B78: -1.7 | G78: -1.3688 | H78: 340000
A79: 34.21 | B79: -1.8 | G79: -1.3684 | H79: 360000
A80: 34.2 | B80: -1.8 | G80: -1.368 | H80: 360000
A81: 34.2 | B81: -1.8 | G81: -1.368 | H81: 360000
A82: 34.17 | B82: -1.8 | G82: -1.3668 | H82: 360000
A83: 34.16 | B83: -1.8 | G83: -1.3664 | H83: 360000
A84: 34.13 | B84: -1.8 | G84: -1.3652 | H84: 360000
A85: 34.12 | B85: -1.9 | G85: -1.3648 | H85: 380000
A86: 34.12 | B86: -1.9 | G86: -1.3648 | H86: 380000
A87: 34.08 | B87: -1.9 | G87: -1.3632 | H87: 380000
A88: 34.08 | B88: -1.9 | G88: -1.3632 | H88: 380000
A89: 34.07 | B89: -1.9 | G89: -1.3628 | H89: 380000
A90: 34.04 | B90: -1.9 | G90: -1.3616 | H90: 380000
A91: 34.04 | B91: -1.9 | G91: -1.3616 | H91: 380000
A92: 34.01 | B92: -1.9 | G92: -1.3604 | H92: 380000
A93: 33.99 | B93: -2 | G93: -1.3596 | H93: 400000
A94: 33.98 | B94: -2 | G94: -1.3592 | H94: 400000
A95: 33.96 | B95: -2 | G95: -1.3584 | H95: 400000
A96: 33.96 | B96: -2 | G96: -1.3584 | H96: 400000
A97: 33.95 | B97: -2 | G97: -1.358 | H97: 400000
A98: 33.92 | B98: -2 | G98: -1.3568 | H98: 400000
A99: 33.89 | B99: -2.1 | G99: -1.3556 | H99: 420000
A100: 33.88 | B100: -2.1 | G100: -1.3552 | H100: 420000
A101: 33.87 | B101: -2.1 | G101: -1.3548 | H101: 420000
A102: 33.84 | B102: -2.1 | G102: -1.3536 | H102: 420000
A103: 33.82 | B103: -2.1 | G103: -1.3528 | H103: 420000
A104: 33.8 | B104: -2.1 | G104: -1.352 | H104: 420000
A105: 33.78 | B105: -2.2 | G105: -1.3512 | H105: 440000
A106: 33.77 | B106: -2.2 | G106: -1.3508 | H106: 440000
A107: 33.76 | B107: -2.2 | G107: -1.3504 | H107: 440000
A108: 33.73 | B108: -2.2 | G108: -1.3492 | H108: 440000
A109: 33.72 | B109: -2.2 | G109: -1.3488 | H109: 440000
A110: 33.71 | B110: -2.2 | G110: -1.3484 | H110: 440000
A111: 33.69 | B111: -2.3 | G111: -1.3476 | H111: 460000
A112: 33.67 | B112: -2.3 | G112: -1.3468 | H112: 460000
A113: 33.66 | B113: -2.3 | G113: -1.3464 | H113: 460000
A114: 33.65 | B114: -2.3 | G114: -1.346 | H114: 460000
A115: 33.62 | B115: -2.3 | G115: -1.3448 | H115: 460000
A116: 33.61 | B116: -2.3 | G116: -1.3444 | H116: 460000
A117: 33.59 | B117: -2.3 | G117: -1.3436 | H117: 460000
A118: 33.56 | B118: -2.4 | G118: -1.3424 | H118: 480000
A119: 33.54 | B119: -2.4 | G119: -1.3416 | H119: 480000
A120: 33.53 | B120: -2.4 | G120: -1.3412 | H120: 480000
A121: 33.52 | B121: -2.4 | G121: -1.3408 | H121: 480000
A122: 33.49 | B122: -2.4 | G122: -1.3396 | H122: 480000
A123: 33.47 | B123: -2.4 | G123: -1.3388 | H123: 480000
A124: 33.45 | B124: -2.5 | G124: -1.338 | H124: 500000
A125: 33.44 | B125: -2.5 | G125: -1.3376 | H125: 500000
A126: 33.43 | B126: -2.5 | G126: -1.3372 | H126: 500000
A127: 33.4 | B127: -2.5 | G127: -1.336 | H127: 500000
A128: 33.39 | B128: -2.5 | G128: -1.3356 | H128: 500000
A129: 33.38 | B129: -2.5 | G129: -1.3352 | H129: 500000
A130: 33.36 | B130: -2.5 | G130: -1.3344 | H130: 500000
A131: 33.34 | B131: -2.6 | G131: =-A131/$E$1 -> -1.3336 | H131: =-B131/$E$3 -> 520000
A132: 33.33 | B132: -2.6 | G132: -1.3332 | H132: 520000
A133: 33.32 | B133: -2.6 | G133: -1.3328 | H133: 520000
A134: 33.29 | B134: -2.6 | G134: -1.3316 | H134: 520000
A135: 33.28 | B135: -2.6 | G135: -1.3312 | H135: 520000
A136: 33.27 | B136: -2.6 | G136: -1.3308 | H136: 520000
A137: 33.24 | B137: -2.7 | G137: -1.3296 | H137: 540000
A138: 33.22 | B138: -2.7 | G138: -1.3288 | H138: 540000
A139: 33.21 | B139: -2.7 | G139: -1.3284 | H139: 540000
A140: 33.2 | B140: -2.7 | G140: -1.328 | H140: 540000
A141: 33.17 | B141: -2.7 | G141: -1.3268 | H141: 540000
A142: 33.16 | B142: -2.7 | G142: -1.3264 | H142: 540000
A143: 33.15 | B143: -2.7 | G143: -1.326 | H143: 540000
A144: 33.12 | B144: -2.7 | G144: -1.3248 | H144: 540000
A145: 33.11 | B145: -2.7 | G145: -1.3244 | H145: 540000
A146: 33.09 | B146: -2.8 | G146: -1.3236 | H146: 560000
A147: 33.08 | B147: -2.8 | G147: -1.3232 | H147: 560000
A148: 33.07 | B148: -2.8 | G148: -1.3228 | H148: 560000
A149: 33.04 | B149: -2.8 | G149: -1.3216 | H149: 560000
A150: 33.03 | B150: -2.8 | G150: -1.3212 | H150: 560000
A151: 33.02 | B151: -2.8 | G151: -1.3208 | H151: 560000
A152: 33 | B152: -2.8 | G152: -1.32 | H152: 560000
A153: 32.98 | B153: -2.8 | G153: -1.3192 | H153: 560000
A154: 32.97 | B154: -2.8 | G154: -1.3188 | H154: 560000
A155: 32.96 | B155: -2.8 | G155: -1.3184 | H155: 560000
A156: 32.94 | B156: -2.8 | G156: -1.3176 | H156: 560000
A157: 32.92 | B157: -2.9 | G157: -1.3168 | H157: 580000
A158: 32.9 | B158: -2.9 | G158: -1.316 | H158: 580000
A159: 32.88 | B159: -2.9 | G159: -1.3152 | H159: 580000
A160: 32.86 | B160: -2.9 | G160: -1.3144 | H160: 580000
A161: 32.85 | B161: -2.9 | G161: -1.314 | H161: 580000
A162: 32.84 | B162: -2.9 | G162: -1.3136 | H162: 580000
A163: 32.81 | B163: -3 | G163: -1.3124 | H163: 600000
A164: 32.79 | B164: -3 | G164: -1.3116 | H164: 600000
A165: 32.78 | B165: -3 | G165: -1.3112 | H165: 600000
A166: 32.77 | B166: -3 | G166: -1.3108 | H166: 600000
A167: 32.75 | B167: -3 | G167: -1.31 | H167: 600000
A168: 32.73 | B168: -3 | G168: -1.3092 | H168: 600000
A169: 32.71 | B169: -3 | G169: -1.3084 | H169: 600000
A170: 32.68 | B170: -3.1 | G170: -1.3072 | H170: 620000
A171: 32.67 | B171: -3.1 | G171: -1.3068 | H171: 620000
A172: 32.65 | B172: -3.1 | G172: -1.306 | H172: 620000
A173: 32.62 | B173: -3.1 | G173: -1.3048 | H173: 620000
A174: 32.61 | B174: -3.1 | G174: -1.3044 | H174: 620000
A175: 32.59 | B175: -3.1 | G175: -1.3036 | H175: 620000
A176: 32.57 | B176: -3.1 | G176: -1.3028 | H176: 620000
A177: 32.56 | B177: -3.1 | G177: -1.3024 | H177: 620000
A178: 32.55 | B178: -3.1 | G178: -1.302 | H178: 620000
A179: 32.53 | B179: -3.1 | G179: -1.3012 | H179: 620000
A180: 32.52 | B180: -3.1 | G180: -1.3008 | H180: 620000
A181: 32.51 | B181: -3.1 | G181: -1.3004 | H181: 620000
A182: 32.48 | B182: -3.2 | G182: -1.2992 | H182: 640000
A183: 32.46 | B183: -3.2 | G183: -1.2984 | H183: 640000
A184: 32.45 | B184: -3.2 | G184: -1.298 | H184: 640000
A185: 32.44 | B185: -3.2 | G185: -1.2976 | H185: 640000
A186: 32.42 | B186: -3.2 | G186: -1.2968 | H186: 640000
A187: 32.41 | B187: -3.2 | G187: -1.2964 | H187: 640000
A188: 32.4 | B188: -3.2 | G188: -1.296 | H188: 640000
A189: 32.37 | B189: -3.2 | G189: -1.2948 | H189: 640000
A190: 32.36 | B190: -3.2 | G190: -1.2944 | H190: 640000
A191: 32.34 | B191: -3.2 | G191: -1.2936 | H191: 640000
A192: 32.31 | B192: -3.3 | G192: -1.2924 | H192: 660000
A193: 32.29 | B193: -3.3 | G193: -1.2916 | H193: 660000
A194: 32.27 | B194: -3.3 | G194: -1.2908 | H194: 660000
A195: 32.26 | B195: -3.3 | G195: =-A195/$E$1 -> -1.2904 | H195: =-B195/$E$3 -> 660000
A196: 32.24 | B196: -3.3 | G196: -1.2896 | H196: 660000
A197: 32.23 | B197: -3.3 | G197: -1.2892 | H197: 660000
A198: 32.21 | B198: -3.3 | G198: -1.2884 | H198: 660000
A199: 32.18 | B199: -3.3 | G199: -1.2872 | H199: 660000
A200: 32.17 | B200: -3.3 | G200: -1.2868 | H200: 660000
... 9315 more rows

Sheet 50-T1
A1: Distance (mm) | B1: Force Data (N) | D1: Guage Length | E1: 25 | G1: Strain | H1: Stress
A2: 0 | B2: 0 | D2: Cross sectional area (mm2) | E2: 5 | G2: =-A2/$E$1 -> 0 | H2: 0
A3: -0.01 | B3: 0 | D3: Cross sectional area (m2) | E3: 5e-06 | G3: =-A3/$E$1 -> 0.0004 | H3: =-B3/$E$3 -> 0
A4: -0.02 | B4: 0 | G4: 0.0008 | H4: 0
A5: -0.04 | B5: 0 | D5: Dataset Size | E5: 3383 | G5: 0.0016 | H5: 0
A6: -0.05 | B6: 0 | G6: 0.002 | H6: 0
A7: -0.06 | B7: 0 | G7: 0.0024 | H7: 0
A8: -0.07 | B8: 0 | G8: 0.0028 | H8: 0
A9: -0.09 | B9: 0 | G9: 0.0036 | H9: 0
A10: -0.11 | B10: 0 | G10: 0.0044 | H10: 0
A11: -0.12 | B11: 0 | G11: 0.0048 | H11: 0
A12: -0.15 | B12: -0.1 | G12: 0.006 | H12: 20000
A13: -0.17 | B13: -0.1 | G13: 0.0068 | H13: 20000
A14: -0.19 | B14: -0.1 | G14: 0.0076 | H14: 20000
A15: -0.22 | B15: -0.2 | G15: 0.0088 | H15: 40000
A16: -0.23 | B16: -0.2 | G16: 0.0092 | H16: 40000
A17: -0.24 | B17: -0.2 | G17: 0.0096 | H17: 40000
A18: -0.26 | B18: -0.3 | G18: 0.0104 | H18: 60000
A19: -0.28 | B19: -0.3 | G19: 0.0112 | H19: 60000
A20: -0.29 | B20: -0.3 | G20: 0.0116 | H20: 60000
A21: -0.3 | B21: -0.3 | G21: 0.012 | H21: 60000
A22: -0.31 | B22: -0.3 | G22: 0.0124 | H22: 60000
A23: -0.33 | B23: -0.4 | G23: 0.0132 | H23: 80000
A24: -0.34 | B24: -0.4 | G24: 0.0136 | H24: 80000
A25: -0.35 | B25: -0.4 | G25: 0.014 | H25: 80000
A26: -0.37 | B26: -0.4 | G26: 0.0148 | H26: 80000
A27: -0.38 | B27: -0.4 | G27: 0.0152 | H27: 80000
A28: -0.39 | B28: -0.5 | G28: 0.0156 | H28: 100000
A29: -0.4 | B29: -0.5 | G29: 0.016 | H29: 100000
A30: -0.41 | B30: -0.5 | G30: 0.0164 | H30: 100000
A31: -0.43 | B31: -0.5 | G31: 0.0172 | H31: 100000
A32: -0.44 | B32: -0.5 | G32: 0.0176 | H32: 100000
A33: -0.45 | B33: -0.6 | G33: 0.018 | H33: 120000
A34: -0.48 | B34: -0.6 | G34: 0.0192 | H34: 120000
A35: -0.48 | B35: -0.6 | G35: 0.0192 | H35: 120000
A36: -0.49 | B36: -0.6 | G36: 0.0196 | H36: 120000
A37: -0.5 | B37: -0.7 | G37: 0.02 | H37: 140000
A38: -0.52 | B38: -0.7 | G38: 0.0208 | H38: 140000
A39: -0.53 | B39: -0.7 | G39: 0.0212 | H39: 140000
A40: -0.55 | B40: -0.7 | G40: 0.022 | H40: 140000
A41: -0.56 | B41: -0.7 | G41: 0.0224 | H41: 140000
A42: -0.57 | B42: -0.7 | G42: 0.0228 | H42: 140000
A43: -0.59 | B43: -0.8 | G43: 0.0236 | H43: 160000
A44: -0.6 | B44: -0.8 | G44: 0.024 | H44: 160000
A45: -0.61 | B45: -0.8 | G45: 0.0244 | H45: 160000
A46: -0.63 | B46: -0.9 | G46: 0.0252 | H46: 180000
A47: -0.64 | B47: -0.9 | G47: 0.0256 | H47: 180000
A48: -0.66 | B48: -0.9 | G48: 0.0264 | H48: 180000
A49: -0.67 | B49: -0.9 | G49: 0.0268 | H49: 180000
A50: -0.68 | B50: -0.9 | G50: 0.0272 | H50: 180000
A51: -0.71 | B51: -0.9 | G51: 0.0284 | H51: 180000
A52: -0.72 | B52: -0.9 | G52: 0.0288 | H52: 180000
A53: -0.73 | B53: -1 | G53: 0.0292 | H53: 200000
A54: -0.75 | B54: -1 | G54: 0.03 | H54: 200000
A55: -0.76 | B55: -1 | G55: 0.0304 | H55: 200000
A56: -0.78 | B56: -1 | G56: 0.0312 | H56: 200000
A57: -0.8 | B57: -1.1 | G57: 0.032 | H57: 220000
A58: -0.81 | B58: -1.1 | G58: 0.0324 | H58: 220000
A59: -0.82 | B59: -1.1 | G59: 0.0328 | H59: 220000
A60: -0.84 | B60: -1.2 | G60: 0.0336 | H60: 240000
A61: -0.85 | B61: -1.2 | G61: 0.034 | H61: 240000
A62: -0.87 | B62: -1.2 | G62: 0.0348 | H62: 240000
A63: -0.87 | B63: -1.2 | G63: 0.0348 | H63: 240000
A64: -0.88 | B64: -1.2 | G64: 0.0352 | H64: 240000
A65: -0.9 | B65: -1.3 | G65: 0.036 | H65: 260000
A66: -0.91 | B66: -1.3 | G66: 0.0364 | H66: 260000
A67: -0.92 | B67: -1.3 | G67: =-A67/$E$1 -> 0.0368 | H67: =-B67/$E$3 -> 260000
A68: -0.92 | B68: -1.3 | G68: 0.0368 | H68: 260000
A69: -0.94 | B69: -1.3 | G69: 0.0376 | H69: 260000
A70: -0.97 | B70: -1.3 | G70: 0.0388 | H70: 260000
A71: -0.97 | B71: -1.3 | G71: 0.0388 | H71: 260000
A72: -0.98 | B72: -1.4 | G72: 0.0392 | H72: 280000
A73: -1.01 | B73: -1.4 | G73: 0.0404 | H73: 280000
A74: -1.01 | B74: -1.4 | G74: 0.0404 | H74: 280000
A75: -1.02 | B75: -1.4 | G75: 0.0408 | H75: 280000
A76: -1.05 | B76: -1.5 | G76: 0.042 | H76: 300000
A77: -1.06 | B77: -1.5 | G77: 0.0424 | H77: 300000
A78: -1.07 | B78: -1.5 | G78: 0.0428 | H78: 300000
A79: -1.08 | B79: -1.5 | G79: 0.0432 | H79: 300000
A80: -1.09 | B80: -1.5 | G80: 0.0436 | H80: 300000
A81: -1.11 | B81: -1.6 | G81: 0.0444 | H81: 320000
A82: -1.12 | B82: -1.6 | G82: 0.0448 | H82: 320000
A83: -1.13 | B83: -1.6 | G83: 0.0452 | H83: 320000
A84: -1.14 | B84: -1.6 | G84: 0.0456 | H84: 320000
A85: -1.16 | B85: -1.6 | G85: 0.0464 | H85: 320000
A86: -1.17 | B86: -1.6 | G86: 0.0468 | H86: 320000
A87: -1.18 | B87: -1.6 | G87: 0.0472 | H87: 320000
A88: -1.21 | B88: -1.7 | G88: 0.0484 | H88: 340000
A89: -1.22 | B89: -1.7 | G89: 0.0488 | H89: 340000
A90: -1.23 | B90: -1.7 | G90: 0.0492 | H90: 340000
A91: -1.26 | B91: -1.8 | G91: 0.0504 | H91: 360000
A92: -1.26 | B92: -1.8 | G92: 0.0504 | H92: 360000
A93: -1.28 | B93: -1.8 | G93: 0.0512 | H93: 360000
A94: -1.29 | B94: -1.8 | G94: 0.0516 | H94: 360000
A95: -1.3 | B95: -1.8 | G95: 0.052 | H95: 360000
A96: -1.31 | B96: -1.8 | G96: 0.0524 | H96: 360000
A97: -1.32 | B97: -1.8 | G97: 0.0528 | H97: 360000
A98: -1.33 | B98: -1.8 | G98: 0.0532 | H98: 360000
A99: -1.36 | B99: -1.9 | G99: 0.0544 | H99: 380000
A100: -1.37 | B100: -1.9 | G100: 0.0548 | H100: 380000
A101: -1.39 | B101: -1.9 | G101: 0.0556 | H101: 380000
A102: -1.4 | B102: -1.9 | G102: 0.056 | H102: 380000
A103: -1.41 | B103: -1.9 | G103: 0.0564 | H103: 380000
A104: -1.43 | B104: -2 | G104: 0.0572 | H104: 400000
A105: -1.44 | B105: -2 | G105: 0.0576 | H105: 400000
A106: -1.45 | B106: -2 | G106: 0.058 | H106: 400000
A107: -1.47 | B107: -2 | G107: 0.0588 | H107: 400000
A108: -1.49 | B108: -2.1 | G108: 0.0596 | H108: 420000
A109: -1.5 | B109: -2 | G109: 0.06 | H109: 400000
A110: -1.5 | B110: -2.1 | G110: 0.06 | H110: 420000
A111: -1.52 | B111: -2.1 | G111: 0.0608 | H111: 420000
A112: -1.54 | B112: -2.1 | G112: 0.0616 | H112: 420000
A113: -1.55 | B113: -2.1 | G113: 0.062 | H113: 420000
A114: -1.56 | B114: -2.1 | G114: 0.0624 | H114: 420000
A115: -1.59 | B115: -2.1 | G115: 0.0636 | H115: 420000
A116: -1.6 | B116: -2.1 | G116: 0.064 | H116: 420000
A117: -1.6 | B117: -2.1 | G117: 0.064 | H117: 420000
A118: -1.63 | B118: -2.2 | G118: 0.0652 | H118: 440000
A119: -1.64 | B119: -2.2 | G119: 0.0656 | H119: 440000
A120: -1.65 | B120: -2.2 | G120: 0.066 | H120: 440000
A121: -1.67 | B121: -2.2 | G121: 0.0668 | H121: 440000
A122: -1.68 | B122: -2.2 | G122: 0.0672 | H122: 440000
A123: -1.7 | B123: -2.2 | G123: 0.068 | H123: 440000
A124: -1.7 | B124: -2.3 | G124: 0.068 | H124: 460000
A125: -1.71 | B125: -2.3 | G125: 0.0684 | H125: 460000
A126: -1.75 | B126: -2.3 | G126: 0.07 | H126: 460000
A127: -1.76 | B127: -2.3 | G127: 0.0704 | H127: 460000
A128: -1.77 | B128: -2.3 | G128: 0.0708 | H128: 460000
A129: -1.78 | B129: -2.3 | G129: 0.0712 | H129: 460000
A130: -1.8 | B130: -2.3 | G130: 0.072 | H130: 460000
A131: -1.8 | B131: -2.4 | G131: =-A131/$E$1 -> 0.072 | H131: =-B131/$E$3 -> 480000
A132: -1.81 | B132: -2.4 | G132: 0.0724 | H132: 480000
A133: -1.84 | B133: -2.4 | G133: 0.0736 | H133: 480000
A134: -1.85 | B134: -2.4 | G134: 0.074 | H134: 480000
A135: -1.86 | B135: -2.4 | G135: 0.0744 | H135: 480000
A136: -1.87 | B136: -2.4 | G136: 0.0748 | H136: 480000
A137: -1.89 | B137: -2.4 | G137: 0.0756 | H137: 480000
A138: -1.89 | B138: -2.4 | G138: 0.0756 | H138: 480000
A139: -1.9 | B139: -2.4 | G139: 0.076 | H139: 480000
A140: -1.93 | B140: -2.5 | G140: 0.0772 | H140: 500000
A141: -1.94 | B141: -2.5 | G141: 0.0776 | H141: 500000
A142: -1.95 | B142: -2.5 | G142: 0.078 | H142: 500000
A143: -1.96 | B143: -2.5 | G143: 0.0784 | H143: 500000
A144: -1.98 | B144: -2.5 | G144: 0.0792 | H144: 500000
A145: -1.99 | B145: -2.5 | G145: 0.0796 | H145: 500000
A146: -2 | B146: -2.5 | G146: 0.08 | H146: 500000
A147: -2.01 | B147: -2.5 | G147: 0.0804 | H147: 500000
A148: -2.04 | B148: -2.5 | G148: 0.0816 | H148: 500000
A149: -2.04 | B149: -2.6 | G149: 0.0816 | H149: 520000
A150: -2.06 | B150: -2.6 | G150: 0.0824 | H150: 520000
A151: -2.09 | B151: -2.6 | G151: 0.0836 | H151: 520000
A152: -2.09 | B152: -2.6 | G152: 0.0836 | H152: 520000
A153: -2.11 | B153: -2.6 | G153: 0.0844 | H153: 520000
A154: -2.12 | B154: -2.6 | G154: 0.0848 | H154: 520000
A155: -2.13 | B155: -2.6 | G155: 0.0852 | H155: 520000
A156: -2.18 | B156: -2.6 | G156: 0.0872 | H156: 520000
A157: -2.19 | B157: -2.7 | G157: 0.0876 | H157: 540000
A158: -2.21 | B158: -2.7 | G158: 0.0884 | H158: 540000
A159: -2.23 | B159: -2.7 | G159: 0.0892 | H159: 540000
A160: -2.24 | B160: -2.7 | G160: 0.0896 | H160: 540000
A161: -2.25 | B161: -2.7 | G161: 0.09 | H161: 540000
A162: -2.26 | B162: -2.7 | G162: 0.0904 | H162: 540000
A163: -2.28 | B163: -2.8 | G163: 0.0912 | H163: 560000
A164: -2.31 | B164: -2.8 | G164: 0.0924 | H164: 560000
A165: -2.32 | B165: -2.8 | G165: 0.0928 | H165: 560000
A166: -2.33 | B166: -2.8 | G166: 0.0932 | H166: 560000
A167: -2.34 | B167: -2.8 | G167: 0.0936 | H167: 560000
A168: -2.36 | B168: -2.8 | G168: 0.0944 | H168: 560000
A169: -2.37 | B169: -2.8 | G169: 0.0948 | H169: 560000
A170: -2.38 | B170: -2.8 | G170: 0.0952 | H170: 560000
A171: -2.38 | B171: -2.8 | G171: 0.0952 | H171: 560000
A172: -2.4 | B172: -2.8 | G172: 0.096 | H172: 560000
A173: -2.42 | B173: -2.9 | G173: 0.0968 | H173: 580000
A174: -2.43 | B174: -2.9 | G174: 0.0972 | H174: 580000
A175: -2.43 | B175: -2.9 | G175: 0.0972 | H175: 580000
A176: -2.46 | B176: -2.9 | G176: 0.0984 | H176: 580000
A177: -2.47 | B177: -2.9 | G177: 0.0988 | H177: 580000
A178: -2.48 | B178: -2.9 | G178: 0.0992 | H178: 580000
A179: -2.48 | B179: -2.9 | G179: 0.0992 | H179: 580000
A180: -2.5 | B180: -2.9 | G180: 0.1 | H180: 580000
A181: -2.52 | B181: -2.9 | G181: 0.1008 | H181: 580000
A182: -2.54 | B182: -2.9 | G182: 0.1016 | H182: 580000
A183: -2.56 | B183: -2.9 | G183: 0.1024 | H183: 580000
A184: -2.58 | B184: -2.9 | G184: 0.1032 | H184: 580000
A185: -2.59 | B185: -3 | G185: 0.1036 | H185: 600000
A186: -2.6 | B186: -3 | G186: 0.104 | H186: 600000
A187: -2.61 | B187: -3 | G187: 0.1044 | H187: 600000
A188: -2.63 | B188: -3 | G188: 0.1052 | H188: 600000
A189: -2.64 | B189: -3 | G189: 0.1056 | H189: 600000
A190: -2.65 | B190: -3 | G190: 0.106 | H190: 600000
A191: -2.67 | B191: -3 | G191: 0.1068 | H191: 600000
A192: -2.68 | B192: -3 | G192: 0.1072 | H192: 600000
A193: -2.68 | B193: -3 | G193: 0.1072 | H193: 600000
A194: -2.71 | B194: -3 | G194: 0.1084 | H194: 600000
A195: -2.72 | B195: -3 | G195: =-A195/$E$1 -> 0.1088 | H195: =-B195/$E$3 -> 600000
A196: -2.73 | B196: -3 | G196: 0.1092 | H196: 600000
A197: -2.74 | B197: -3 | G197: 0.1096 | H197: 600000
A198: -2.75 | B198: -3 | G198: 0.11 | H198: 600000
A199: -2.77 | B199: -3.1 | G199: 0.1108 | H199: 620000
A200: -2.77 | B200: -3.1 | G200: 0.1108 | H200: 620000
... 3183 more rows

Sheet 50-T2
A1: Distance (mm) | B1: Force Data (N) | D1: Guage Length | E1: 25 | G1: Strain | H1: Stress
A2: 32.37 | B2: -0.3 | D2: Cross sectional area (mm2) | E2: 5 | G2: =-A2/$E$1 -> -1.2948 | H2: =-B2/$E$3 -> 60000
A3: 32.37 | B3: -0.3 | D3: Cross sectional area (m2) | E3: 5e-06 | G3: =-A3/$E$1 -> -1.2948 | H3: =-B3/$E$3 -> 60000
A4: 32.36 | B4: -0.3 | G4: -1.2944 | H4: 60000
A5: 32.35 | B5: -0.3 | D5: Dataset Size | E5: 6531 | G5: -1.294 | H5: 60000
A6: 32.34 | B6: -0.3 | G6: -1.2936 | H6: 60000
A7: 32.33 | B7: -0.3 | G7: -1.2932 | H7: 60000
A8: 32.31 | B8: -0.3 | G8: -1.2924 | H8: 60000
A9: 32.3 | B9: -0.3 | G9: -1.292 | H9: 60000
A10: 32.29 | B10: -0.3 | G10: -1.2916 | H10: 60000
A11: 32.27 | B11: -0.3 | G11: -1.2908 | H11: 60000
A12: 32.26 | B12: -0.3 | G12: -1.2904 | H12: 60000
A13: 32.25 | B13: -0.3 | G13: -1.29 | H13: 60000
A14: 32.24 | B14: -0.3 | G14: -1.2896 | H14: 60000
A15: 32.23 | B15: -0.3 | G15: -1.2892 | H15: 60000
A16: 32.21 | B16: -0.3 | G16: -1.2884 | H16: 60000
A17: 32.2 | B17: -0.3 | G17: -1.288 | H17: 60000
A18: 32.19 | B18: -0.3 | G18: -1.2876 | H18: 60000
A19: 32.17 | B19: -0.3 | G19: -1.2868 | H19: 60000
A20: 32.16 | B20: -0.3 | G20: -1.2864 | H20: 60000
A21: 32.15 | B21: -0.3 | G21: -1.286 | H21: 60000
A22: 32.13 | B22: -0.4 | G22: -1.2852 | H22: 80000
A23: 32.13 | B23: -0.4 | G23: -1.2852 | H23: 80000
A24: 32.12 | B24: -0.4 | G24: -1.2848 | H24: 80000
A25: 32.11 | B25: -0.4 | G25: -1.2844 | H25: 80000
A26: 32.09 | B26: -0.4 | G26: -1.2836 | H26: 80000
A27: 32.07 | B27: -0.4 | G27: -1.2828 | H27: 80000
A28: 32.06 | B28: -0.4 | G28: -1.2824 | H28: 80000
A29: 32.04 | B29: -0.4 | G29: -1.2816 | H29: 80000
A30: 32.03 | B30: -0.4 | G30: -1.2812 | H30: 80000
A31: 32.02 | B31: -0.5 | G31: -1.2808 | H31: 100000
A32: 32.01 | B32: -0.4 | G32: -1.2804 | H32: 80000
A33: 31.99 | B33: -0.5 | G33: -1.2796 | H33: 100000
A34: 31.99 | B34: -0.5 | G34: -1.2796 | H34: 100000
A35: 31.96 | B35: -0.5 | G35: -1.2784 | H35: 100000
A36: 31.95 | B36: -0.5 | G36: -1.278 | H36: 100000
A37: 31.94 | B37: -0.5 | G37: -1.2776 | H37: 100000
A38: 31.92 | B38: -0.5 | G38: -1.2768 | H38: 100000
A39: 31.91 | B39: -0.5 | G39: -1.2764 | H39: 100000
A40: 31.9 | B40: -0.5 | G40: -1.276 | H40: 100000
A41: 31.89 | B41: -0.5 | G41: -1.2756 | H41: 100000
A42: 31.87 | B42: -0.5 | G42: -1.2748 | H42: 100000
A43: 31.86 | B43: -0.5 | G43: -1.2744 | H43: 100000
A44: 31.85 | B44: -0.6 | G44: -1.274 | H44: 120000
A45: 31.84 | B45: -0.5 | G45: -1.2736 | H45: 100000
A46: 31.82 | B46: -0.5 | G46: -1.2728 | H46: 100000
A47: 31.8 | B47: -0.5 | G47: -1.272 | H47: 100000
A48: 31.8 | B48: -0.5 | G48: -1.272 | H48: 100000
A49: 31.79 | B49: -0.5 | G49: -1.2716 | H49: 100000
A50: 31.77 | B50: -0.6 | G50: -1.2708 | H50: 120000
A51: 31.76 | B51: -0.6 | G51: -1.2704 | H51: 120000
A52: 31.75 | B52: -0.6 | G52: -1.27 | H52: 120000
A53: 31.73 | B53: -0.6 | G53: -1.2692 | H53: 120000
A54: 31.71 | B54: -0.6 | G54: -1.2684 | H54: 120000
A55: 31.7 | B55: -0.6 | G55: -1.268 | H55: 120000
A56: 31.7 | B56: -0.6 | G56: -1.268 | H56: 120000
A57: 31.69 | B57: -0.6 | G57: -1.2676 | H57: 120000
A58: 31.66 | B58: -0.6 | G58: -1.2664 | H58: 120000
A59: 31.65 | B59: -0.6 | G59: -1.266 | H59: 120000
A60: 31.65 | B60: -0.6 | G60: -1.266 | H60: 120000
A61: 31.63 | B61: -0.6 | G61: -1.2652 | H61: 120000
A62: 31.62 | B62: -0.6 | G62: -1.2648 | H62: 120000
A63: 31.61 | B63: -0.6 | G63: -1.2644 | H63: 120000
A64: 31.59 | B64: -0.6 | G64: -1.2636 | H64: 120000
A65: 31.57 | B65: -0.7 | G65: -1.2628 | H65: 140000
A66: 31.56 | B66: -0.7 | G66: -1.2624 | H66: 140000
A67: 31.55 | B67: -0.7 | G67: =-A67/$E$1 -> -1.262 | H67: =-B67/$E$3 -> 140000
A68: 31.52 | B68: -0.7 | G68: -1.2608 | H68: 140000
A69: 31.5 | B69: -0.7 | G69: -1.26 | H69: 140000
A70: 31.5 | B70: -0.7 | G70: -1.26 | H70: 140000
A71: 31.49 | B71: -0.8 | G71: -1.2596 | H71: 160000
A72: 31.47 | B72: -0.8 | G72: -1.2588 | H72: 160000
A73: 31.43 | B73: -0.8 | G73: -1.2572 | H73: 160000
A74: 31.4 | B74: -0.8 | G74: -1.256 | H74: 160000
A75: 31.39 | B75: -0.8 | G75: -1.2556 | H75: 160000
A76: 31.38 | B76: -0.8 | G76: -1.2552 | H76: 160000
A77: 31.37 | B77: -0.8 | G77: -1.2548 | H77: 160000
A78: 31.36 | B78: -0.8 | G78: -1.2544 | H78: 160000
A79: 31.35 | B79: -0.9 | G79: -1.254 | H79: 180000
A80: 31.33 | B80: -0.9 | G80: -1.2532 | H80: 180000
A81: 31.31 | B81: -0.9 | G81: -1.2524 | H81: 180000
A82: 31.3 | B82: -0.9 | G82: -1.252 | H82: 180000
A83: 31.29 | B83: -1 | G83: -1.2516 | H83: 200000
A84: 31.28 | B84: -0.9 | G84: -1.2512 | H84: 180000
A85: 31.27 | B85: -0.9 | G85: -1.2508 | H85: 180000
A86: 31.26 | B86: -1 | G86: -1.2504 | H86: 200000
A87: 31.23 | B87: -1 | G87: -1.2492 | H87: 200000
A88: 31.22 | B88: -1 | G88: -1.2488 | H88: 200000
A89: 31.21 | B89: -1 | G89: -1.2484 | H89: 200000
A90: 31.2 | B90: -1 | G90: -1.248 | H90: 200000
A91: 31.18 | B91: -1 | G91: -1.2472 | H91: 200000
A92: 31.16 | B92: -1.1 | G92: -1.2464 | H92: 220000
A93: 31.15 | B93: -1 | G93: -1.246 | H93: 200000
A94: 31.14 | B94: -1.1 | G94: -1.2456 | H94: 220000
A95: 31.13 | B95: -1.1 | G95: -1.2452 | H95: 220000
A96: 31.11 | B96: -1.1 | G96: -1.2444 | H96: 220000
A97: 31.1 | B97: -1.1 | G97: -1.244 | H97: 220000
A98: 31.09 | B98: -1.1 | G98: -1.2436 | H98: 220000
A99: 31.06 | B99: -1.2 | G99: -1.2424 | H99: 240000
A100: 31.06 | B100: -1.2 | G100: -1.2424 | H100: 240000
A101: 31.05 | B101: -1.2 | G101: -1.242 | H101: 240000
A102: 31.03 | B102: -1.2 | G102: -1.2412 | H102: 240000
A103: 31.02 | B103: -1.2 | G103: -1.2408 | H103: 240000
A104: 31.01 | B104: -1.2 | G104: -1.2404 | H104: 240000
A105: 30.99 | B105: -1.2 | G105: -1.2396 | H105: 240000
A106: 30.98 | B106: -1.2 | G106: -1.2392 | H106: 240000
A107: 30.97 | B107: -1.2 | G107: -1.2388 | H107: 240000
A108: 30.95 | B108: -1.3 | G108: -1.238 | H108: 260000
A109: 30.93 | B109: -1.3 | G109: -1.2372 | H109: 260000
A110: 30.92 | B110: -1.3 | G110: -1.2368 | H110: 260000
A111: 30.92 | B111: -1.3 | G111: -1.2368 | H111: 260000
A112: 30.91 | B112: -1.3 | G112: -1.2364 | H112: 260000
A113: 30.88 | B113: -1.3 | G113: -1.2352 | H113: 260000
A114: 30.87 | B114: -1.3 | G114: -1.2348 | H114: 260000
A115: 30.87 | B115: -1.4 | G115: -1.2348 | H115: 280000
A116: 30.85 | B116: -1.4 | G116: -1.234 | H116: 280000
A117: 30.83 | B117: -1.4 | G117: -1.2332 | H117: 280000
A118: 30.82 | B118: -1.4 | G118: -1.2328 | H118: 280000
A119: 30.82 | B119: -1.4 | G119: -1.2328 | H119: 280000
A120: 30.79 | B120: -1.4 | G120: -1.2316 | H120: 280000
A121: 30.78 | B121: -1.4 | G121: -1.2312 | H121: 280000
A122: 30.76 | B122: -1.4 | G122: -1.2304 | H122: 280000
A123: 30.76 | B123: -1.4 | G123: -1.2304 | H123: 280000
A124: 30.74 | B124: -1.5 | G124: -1.2296 | H124: 300000
A125: 30.72 | B125: -1.5 | G125: -1.2288 | H125: 300000
A126: 30.71 | B126: -1.5 | G126: -1.2284 | H126: 300000
A127: 30.7 | B127: -1.5 | G127: -1.228 | H127: 300000
A128: 30.67 | B128: -1.5 | G128: -1.2268 | H128: 300000
A129: 30.66 | B129: -1.5 | G129: -1.2264 | H129: 300000
A130: 30.65 | B130: -1.6 | G130: -1.226 | H130: 320000
A131: 30.64 | B131: -1.6 | G131: =-A131/$E$1 -> -1.2256 | H131: =-B131/$E$3 -> 320000
A132: 30.62 | B132: -1.6 | G132: -1.2248 | H132: 320000
A133: 30.62 | B133: -1.6 | G133: -1.2248 | H133: 320000
A134: 30.61 | B134: -1.6 | G134: -1.2244 | H134: 320000
A135: 30.58 | B135: -1.6 | G135: -1.2232 | H135: 320000
A136: 30.57 | B136: -1.6 | G136: -1.2228 | H136: 320000
A137: 30.57 | B137: -1.6 | G137: -1.2228 | H137: 320000
A138: 30.56 | B138: -1.6 | G138: -1.2224 | H138: 320000
A139: 30.53 | B139: -1.7 | G139: -1.2212 | H139: 340000
A140: 30.52 | B140: -1.7 | G140: -1.2208 | H140: 340000
A141: 30.51 | B141: -1.7 | G141: -1.2204 | H141: 340000
A142: 30.5 | B142: -1.7 | G142: -1.22 | H142: 340000
A143: 30.49 | B143: -1.7 | G143: -1.2196 | H143: 340000
A144: 30.47 | B144: -1.7 | G144: -1.2188 | H144: 340000
A145: 30.45 | B145: -1.7 | G145: -1.218 | H145: 340000
A146: 30.44 | B146: -1.7 | G146: -1.2176 | H146: 340000
A147: 30.43 | B147: -1.8 | G147: -1.2172 | H147: 360000
A148: 30.4 | B148: -1.8 | G148: -1.216 | H148: 360000
A149: 30.39 | B149: -1.8 | G149: -1.2156 | H149: 360000
A150: 30.38 | B150: -1.8 | G150: -1.2152 | H150: 360000
A151: 30.37 | B151: -1.8 | G151: -1.2148 | H151: 360000
A152: 30.35 | B152: -1.8 | G152: -1.214 | H152: 360000
A153: 30.33 | B153: -1.8 | G153: -1.2132 | H153: 360000
A154: 30.33 | B154: -1.8 | G154: -1.2132 | H154: 360000
A155: 30.32 | B155: -1.9 | G155: -1.2128 | H155: 380000
A156: 30.3 | B156: -1.9 | G156: -1.212 | H156: 380000
A157: 30.29 | B157: -1.9 | G157: -1.2116 | H157: 380000
A158: 30.28 | B158: -1.9 | G158: -1.2112 | H158: 380000
A159: 30.26 | B159: -1.9 | G159: -1.2104 | H159: 380000
A160: 30.25 | B160: -1.9 | G160: -1.21 | H160: 380000
A161: 30.24 | B161: -1.9 | G161: -1.2096 | H161: 380000
A162: 30.22 | B162: -1.9 | G162: -1.2088 | H162: 380000
A163: 30.21 | B163: -1.9 | G163: -1.2084 | H163: 380000
A164: 30.19 | B164: -2 | G164: -1.2076 | H164: 400000
A165: 30.18 | B165: -2 | G165: -1.2072 | H165: 400000
A166: 30.18 | B166: -2 | G166: -1.2072 | H166: 400000
A167: 30.16 | B167: -2 | G167: -1.2064 | H167: 400000
A168: 30.14 | B168: -2 | G168: -1.2056 | H168: 400000
A169: 30.13 | B169: -2 | G169: -1.2052 | H169: 400000
A170: 30.13 | B170: -2 | G170: -1.2052 | H170: 400000
A171: 30.1 | B171: -2 | G171: -1.204 | H171: 400000
A172: 30.09 | B172: -2.1 | G172: -1.2036 | H172: 420000
A173: 30.08 | B173: -2 | G173: -1.2032 | H173: 400000
A174: 30.07 | B174: -2.1 | G174: -1.2028 | H174: 420000
A175: 30.05 | B175: -2.1 | G175: -1.202 | H175: 420000
A176: 30.04 | B176: -2.1 | G176: -1.2016 | H176: 420000
A177: 30.04 | B177: -2.1 | G177: -1.2016 | H177: 420000
A178: 30.01 | B178: -2.1 | G178: -1.2004 | H178: 420000
A179: 29.99 | B179: -2.1 | G179: -1.1996 | H179: 420000
A180: 29.98 | B180: -2.2 | G180: -1.1992 | H180: 440000
A181: 29.97 | B181: -2.1 | G181: -1.1988 | H181: 420000
A182: 29.94 | B182: -2.2 | G182: -1.1976 | H182: 440000
A183: 29.94 | B183: -2.2 | G183: -1.1976 | H183: 440000
A184: 29.93 | B184: -2.2 | G184: -1.1972 | H184: 440000
A185: 29.91 | B185: -2.2 | G185: -1.1964 | H185: 440000
A186: 29.89 | B186: -2.2 | G186: -1.1956 | H186: 440000
A187: 29.89 | B187: -2.2 | G187: -1.1956 | H187: 440000
A188: 29.88 | B188: -2.2 | G188: -1.1952 | H188: 440000
A189: 29.86 | B189: -2.2 | G189: -1.1944 | H189: 440000
A190: 29.84 | B190: -2.3 | G190: -1.1936 | H190: 460000
A191: 29.83 | B191: -2.3 | G191: -1.1932 | H191: 460000
A192: 29.82 | B192: -2.3 | G192: -1.1928 | H192: 460000
A193: 29.81 | B193: -2.3 | G193: -1.1924 | H193: 460000
A194: 29.79 | B194: -2.3 | G194: -1.1916 | H194: 460000
A195: 29.79 | B195: -2.3 | G195: =-A195/$E$1 -> -1.1916 | H195: =-B195/$E$3 -> 460000
A196: 29.78 | B196: -2.3 | G196: -1.1912 | H196: 460000
A197: 29.76 | B197: -2.3 | G197: -1.1904 | H197: 460000
A198: 29.75 | B198: -2.3 | G198: -1.19 | H198: 460000
A199: 29.73 | B199: -2.3 | G199: -1.1892 | H199: 460000
A200: 29.71 | B200: -2.4 | G200: -1.1884 | H200: 480000
... 6331 more rows

Sheet 40-T1
A1: Distance (mm) | B1: Force Data (N) | D1: Guage Length | E1: 25 | G1: Strain | H1: Stress
A2: -4.6 | B2: 0 | D2: Cross sectional area (mm2) | E2: 5 | G2: =-A2/$E$1 -> 0.184 | H2: =-B2/$E$3 -> 0
A3: -4.61 | B3: 0 | D3: Cross sectional area (m2) | E3: 5e-06 | G3: =-A3/$E$1 -> 0.1844 | H3: =-B3/$E$3 -> 0
A4: -4.62 | B4: 0 | G4: 0.1848 | H4: 0
A5: -4.64 | B5: 0 | D5: Dataset Size | E5: 9284 | G5: 0.1856 | H5: 0
A6: -4.65 | B6: 0 | G6: 0.186 | H6: 0
A7: -4.66 | B7: 0 | G7: 0.1864 | H7: 0
A8: -4.67 | B8: 0 | G8: 0.1868 | H8: 0
A9: -4.69 | B9: 0 | G9: 0.1876 | H9: 0
A10: -4.7 | B10: 0 | G10: 0.188 | H10: 0
A11: -4.71 | B11: 0 | G11: 0.1884 | H11: 0
A12: -4.73 | B12: 0 | G12: 0.1892 | H12: 0
A13: -4.74 | B13: 0 | G13: 0.1896 | H13: 0
A14: -4.75 | B14: 0 | G14: 0.19 | H14: 0
A15: -4.76 | B15: -0.1 | G15: 0.1904 | H15: 20000
A16: -4.76 | B16: 0 | G16: 0.1904 | H16: 0
A17: -4.78 | B17: -0.1 | G17: 0.1912 | H17: 20000
A18: -4.79 | B18: -0.1 | G18: 0.1916 | H18: 20000
A19: -4.8 | B19: -0.1 | G19: 0.192 | H19: 20000
A20: -4.81 | B20: -0.1 | G20: 0.1924 | H20: 20000
A21: -4.82 | B21: -0.1 | G21: 0.1928 | H21: 20000
A22: -4.83 | B22: -0.2 | G22: 0.1932 | H22: 40000
A23: -4.84 | B23: -0.2 | G23: 0.1936 | H23: 40000
A24: -4.85 | B24: -0.2 | G24: 0.194 | H24: 40000
A25: -4.86 | B25: -0.2 | G25: 0.1944 | H25: 40000
A26: -4.87 | B26: -0.2 | G26: 0.1948 | H26: 40000
A27: -4.88 | B27: -0.2 | G27: 0.1952 | H27: 40000
A28: -4.9 | B28: -0.3 | G28: 0.196 | H28: 60000
A29: -4.92 | B29: -0.3 | G29: 0.1968 | H29: 60000
A30: -4.92 | B30: -0.3 | G30: 0.1968 | H30: 60000
A31: -4.93 | B31: -0.3 | G31: 0.1972 | H31: 60000
A32: -4.94 | B32: -0.3 | G32: 0.1976 | H32: 60000
A33: -4.96 | B33: -0.3 | G33: 0.1984 | H33: 60000
A34: -4.96 | B34: -0.3 | G34: 0.1984 | H34: 60000
A35: -4.97 | B35: -0.3 | G35: 0.1988 | H35: 60000
A36: -4.99 | B36: -0.4 | G36: 0.1996 | H36: 80000
A37: -5 | B37: -0.4 | G37: 0.2 | H37: 80000
A38: -5 | B38: -0.4 | G38: 0.2 | H38: 80000
A39: -5.04 | B39: -0.5 | G39: 0.2016 | H39: 100000
A40: -5.05 | B40: -0.5 | G40: 0.202 | H40: 100000
A41: -5.06 | B41: -0.5 | G41: 0.2024 | H41: 100000
A42: -5.07 | B42: -0.5 | G42: 0.2028 | H42: 100000
A43: -5.08 | B43: -0.5 | G43: 0.2032 | H43: 100000
A44: -5.1 | B44: -0.5 | G44: 0.204 | H44: 100000
A45: -5.11 | B45: -0.5 | G45: 0.2044 | H45: 100000
A46: -5.13 | B46: -0.5 | G46: 0.2052 | H46: 100000
A47: -5.14 | B47: -0.6 | G47: 0.2056 | H47: 120000
A48: -5.16 | B48: -0.6 | G48: 0.2064 | H48: 120000
A49: -5.17 | B49: -0.6 | G49: 0.2068 | H49: 120000
A50: -5.19 | B50: -0.6 | G50: 0.2076 | H50: 120000
A51: -5.21 | B51: -0.7 | G51: 0.2084 | H51: 140000
A52: -5.22 | B52: -0.7 | G52: 0.2088 | H52: 140000
A53: -5.24 | B53: -0.7 | G53: 0.2096 | H53: 140000
A54: -5.25 | B54: -0.7 | G54: 0.21 | H54: 140000
A55: -5.26 | B55: -0.8 | G55: 0.2104 | H55: 160000
A56: -5.26 | B56: -0.8 | G56: 0.2104 | H56: 160000
A57: -5.28 | B57: -0.8 | G57: 0.2112 | H57: 160000
A58: -5.29 | B58: -0.8 | G58: 0.2116 | H58: 160000
A59: -5.3 | B59: -0.8 | G59: 0.212 | H59: 160000
A60: -5.31 | B60: -0.8 | G60: 0.2124 | H60: 160000
A61: -5.32 | B61: -0.8 | G61: 0.2128 | H61: 160000
A62: -5.34 | B62: -0.9 | G62: 0.2136 | H62: 180000
A63: -5.36 | B63: -0.9 | G63: 0.2144 | H63: 180000
A64: -5.36 | B64: -0.9 | G64: 0.2144 | H64: 180000
A65: -5.37 | B65: -0.9 | G65: 0.2148 | H65: 180000
A66: -5.38 | B66: -0.9 | G66: 0.2152 | H66: 180000
A67: -5.4 | B67: -1 | G67: =-A67/$E$1 -> 0.216 | H67: =-B67/$E$3 -> 200000
A68: -5.4 | B68: -1 | G68: 0.216 | H68: 200000
A69: -5.42 | B69: -1 | G69: 0.2168 | H69: 200000
A70: -5.43 | B70: -1 | G70: 0.2172 | H70: 200000
A71: -5.44 | B71: -1.1 | G71: 0.2176 | H71: 220000
A72: -5.44 | B72: -1 | G72: 0.2176 | H72: 200000
A73: -5.46 | B73: -1.1 | G73: 0.2184 | H73: 220000
A74: -5.48 | B74: -1.1 | G74: 0.2192 | H74: 220000
A75: -5.48 | B75: -1.1 | G75: 0.2192 | H75: 220000
A76: -5.5 | B76: -1.1 | G76: 0.22 | H76: 220000
A77: -5.51 | B77: -1.1 | G77: 0.2204 | H77: 220000
A78: -5.52 | B78: -1.1 | G78: 0.2208 | H78: 220000
A79: -5.53 | B79: -1.2 | G79: 0.2212 | H79: 240000
A80: -5.53 | B80: -1.2 | G80: 0.2212 | H80: 240000
A81: -5.54 | B81: -1.2 | G81: 0.2216 | H81: 240000
A82: -5.56 | B82: -1.2 | G82: 0.2224 | H82: 240000
A83: -5.57 | B83: -1.2 | G83: 0.2228 | H83: 240000
A84: -5.58 | B84: -1.2 | G84: 0.2232 | H84: 240000
A85: -5.59 | B85: -1.3 | G85: 0.2236 | H85: 260000
A86: -5.6 | B86: -1.3 | G86: 0.224 | H86: 260000
A87: -5.61 | B87: -1.3 | G87: 0.2244 | H87: 260000
A88: -5.62 | B88: -1.3 | G88: 0.2248 | H88: 260000
A89: -5.63 | B89: -1.3 | G89: 0.2252 | H89: 260000
A90: -5.65 | B90: -1.4 | G90: 0.226 | H90: 280000
A91: -5.65 | B91: -1.4 | G91: 0.226 | H91: 280000
A92: -5.67 | B92: -1.4 | G92: 0.2268 | H92: 280000
A93: -5.69 | B93: -1.4 | G93: 0.2276 | H93: 280000
A94: -5.69 | B94: -1.4 | G94: 0.2276 | H94: 280000
A95: -5.71 | B95: -1.4 | G95: 0.2284 | H95: 280000
A96: -5.72 | B96: -1.4 | G96: 0.2288 | H96: 280000
A97: -5.73 | B97: -1.4 | G97: 0.2292 | H97: 280000
A98: -5.73 | B98: -1.5 | G98: 0.2292 | H98: 300000
A99: -5.76 | B99: -1.5 | G99: 0.2304 | H99: 300000
A100: -5.78 | B100: -1.5 | G100: 0.2312 | H100: 300000
A101: -5.79 | B101: -1.5 | G101: 0.2316 | H101: 300000
A102: -5.8 | B102: -1.5 | G102: 0.232 | H102: 300000
A103: -5.81 | B103: -1.5 | G103: 0.2324 | H103: 300000
A104: -5.82 | B104: -1.6 | G104: 0.2328 | H104: 320000
A105: -5.83 | B105: -1.6 | G105: 0.2332 | H105: 320000
A106: -5.83 | B106: -1.6 | G106: 0.2332 | H106: 320000
A107: -5.85 | B107: -1.6 | G107: 0.234 | H107: 320000
A108: -5.86 | B108: -1.6 | G108: 0.2344 | H108: 320000
A109: -5.87 | B109: -1.6 | G109: 0.2348 | H109: 320000
A110: -5.88 | B110: -1.6 | G110: 0.2352 | H110: 320000
A111: -5.89 | B111: -1.7 | G111: 0.2356 | H111: 340000
A112: -5.91 | B112: -1.7 | G112: 0.2364 | H112: 340000
A113: -5.91 | B113: -1.7 | G113: 0.2364 | H113: 340000
A114: -5.92 | B114: -1.7 | G114: 0.2368 | H114: 340000
A115: -5.94 | B115: -1.7 | G115: 0.2376 | H115: 340000
A116: -5.95 | B116: -1.7 | G116: 0.238 | H116: 340000
A117: -5.96 | B117: -1.7 | G117: 0.2384 | H117: 340000
A118: -5.98 | B118: -1.8 | G118: 0.2392 | H118: 360000
A119: -5.99 | B119: -1.7 | G119: 0.2396 | H119: 340000
A120: -6 | B120: -1.8 | G120: 0.24 | H120: 360000
A121: -6.02 | B121: -1.8 | G121: 0.2408 | H121: 360000
A122: -6.03 | B122: -1.8 | G122: 0.2412 | H122: 360000
A123: -6.04 | B123: -1.8 | G123: 0.2416 | H123: 360000
A124: -6.06 | B124: -1.9 | G124: 0.2424 | H124: 380000
A125: -6.07 | B125: -1.9 | G125: 0.2428 | H125: 380000
A126: -6.08 | B126: -1.9 | G126: 0.2432 | H126: 380000
A127: -6.09 | B127: -1.9 | G127: 0.2436 | H127: 380000
A128: -6.09 | B128: -1.9 | G128: 0.2436 | H128: 380000
A129: -6.11 | B129: -1.9 | G129: 0.2444 | H129: 380000
A130: -6.12 | B130: -1.9 | G130: 0.2448 | H130: 380000
A131: -6.13 | B131: -1.9 | G131: =-A131/$E$1 -> 0.2452 | H131: =-B131/$E$3 -> 380000
A132: -6.15 | B132: -2 | G132: 0.246 | H132: 400000
A133: -6.15 | B133: -1.9 | G133: 0.246 | H133: 380000
A134: -6.18 | B134: -2 | G134: 0.2472 | H134: 400000
A135: -6.19 | B135: -2 | G135: 0.2476 | H135: 400000
A136: -6.21 | B136: -2 | G136: 0.2484 | H136: 400000
A137: -6.23 | B137: -2 | G137: 0.2492 | H137: 400000
A138: -6.24 | B138: -2.1 | G138: 0.2496 | H138: 420000
A139: -6.25 | B139: -2.1 | G139: 0.25 | H139: 420000
A140: -6.25 | B140: -2.1 | G140: 0.25 | H140: 420000
A141: -6.27 | B141: -2.1 | G141: 0.2508 | H141: 420000
A142: -6.28 | B142: -2.1 | G142: 0.2512 | H142: 420000
A143: -6.29 | B143: -2.1 | G143: 0.2516 | H143: 420000
A144: -6.31 | B144: -2.1 | G144: 0.2524 | H144: 420000
A145: -6.31 | B145: -2.1 | G145: 0.2524 | H145: 420000
A146: -6.33 | B146: -2.1 | G146: 0.2532 | H146: 420000
A147: -6.34 | B147: -2.1 | G147: 0.2536 | H147: 420000
A148: -6.35 | B148: -2.1 | G148: 0.254 | H148: 420000
A149: -6.37 | B149: -2.2 | G149: 0.2548 | H149: 440000
A150: -6.37 | B150: -2.2 | G150: 0.2548 | H150: 440000
A151: -6.38 | B151: -2.2 | G151: 0.2552 | H151: 440000
A152: -6.39 | B152: -2.2 | G152: 0.2556 | H152: 440000
A153: -6.4 | B153: -2.2 | G153: 0.256 | H153: 440000
A154: -6.41 | B154: -2.2 | G154: 0.2564 | H154: 440000
A155: -6.42 | B155: -2.3 | G155: 0.2568 | H155: 460000
A156: -6.44 | B156: -2.3 | G156: 0.2576 | H156: 460000
A157: -6.44 | B157: -2.3 | G157: 0.2576 | H157: 460000
A158: -6.45 | B158: -2.3 | G158: 0.258 | H158: 460000
A159: -6.46 | B159: -2.3 | G159: 0.2584 | H159: 460000
A160: -6.48 | B160: -2.3 | G160: 0.2592 | H160: 460000
A161: -6.48 | B161: -2.3 | G161: 0.2592 | H161: 460000
A162: -6.5 | B162: -2.3 | G162: 0.26 | H162: 460000
A163: -6.52 | B163: -2.3 | G163: 0.2608 | H163: 460000
A164: -6.53 | B164: -2.3 | G164: 0.2612 | H164: 460000
A165: -6.54 | B165: -2.3 | G165: 0.2616 | H165: 460000
A166: -6.54 | B166: -2.4 | G166: 0.2616 | H166: 480000
A167: -6.56 | B167: -2.4 | G167: 0.2624 | H167: 480000
A168: -6.57 | B168: -2.4 | G168: 0.2628 | H168: 480000
A169: -6.58 | B169: -2.4 | G169: 0.2632 | H169: 480000
A170: -6.61 | B170: -2.4 | G170: 0.2644 | H170: 480000
A171: -6.62 | B171: -2.4 | G171: 0.2648 | H171: 480000
A172: -6.62 | B172: -2.4 | G172: 0.2648 | H172: 480000
A173: -6.63 | B173: -2.4 | G173: 0.2652 | H173: 480000
A174: -6.68 | B174: -2.5 | G174: 0.2672 | H174: 500000
A175: -6.7 | B175: -2.5 | G175: 0.268 | H175: 500000
A176: -6.7 | B176: -2.5 | G176: 0.268 | H176: 500000
A177: -6.71 | B177: -2.5 | G177: 0.2684 | H177: 500000
A178: -6.72 | B178: -2.5 | G178: 0.2688 | H178: 500000
A179: -6.74 | B179: -2.5 | G179: 0.2696 | H179: 500000
A180: -6.74 | B180: -2.5 | G180: 0.2696 | H180: 500000
A181: -6.75 | B181: -2.6 | G181: 0.27 | H181: 520000
A182: -6.77 | B182: -2.6 | G182: 0.2708 | H182: 520000
A183: -6.78 | B183: -2.6 | G183: 0.2712 | H183: 520000
A184: -6.82 | B184: -2.6 | G184: 0.2728 | H184: 520000
A185: -6.82 | B185: -2.6 | G185: 0.2728 | H185: 520000
A186: -6.83 | B186: -2.6 | G186: 0.2732 | H186: 520000
A187: -6.85 | B187: -2.7 | G187: 0.274 | H187: 540000
A188: -6.86 | B188: -2.7 | G188: 0.2744 | H188: 540000
A189: -6.88 | B189: -2.7 | G189: 0.2752 | H189: 540000
A190: -6.88 | B190: -2.7 | G190: 0.2752 | H190: 540000
A191: -6.89 | B191: -2.7 | G191: 0.2756 | H191: 540000
A192: -6.9 | B192: -2.7 | G192: 0.276 | H192: 540000
A193: -6.92 | B193: -2.7 | G193: 0.2768 | H193: 540000
A194: -6.92 | B194: -2.7 | G194: 0.2768 | H194: 540000
A195: -6.93 | B195: -2.7 | G195: =-A195/$E$1 -> 0.2772 | H195: =-B195/$E$3 -> 540000
A196: -6.94 | B196: -2.7 | G196: 0.2776 | H196: 540000
A197: -6.96 | B197: -2.7 | G197: 0.2784 | H197: 540000
A198: -6.96 | B198: -2.7 | G198: 0.2784 | H198: 540000
A199: -6.97 | B199: -2.7 | G199: 0.2788 | H199: 540000
A200: -6.99 | B200: -2.8 | G200: 0.2796 | H200: 560000
... 9084 more rows

Sheet 40-T2
A1: Distance (mm) | B1: Force Data (N) | D1: Guage Length | E1: 25 | G1: Strain | H1: Stress
A2: 27.19 | B2: -0.5 | D2: Cross sectional area (mm2) | E2: 5 | G2: =-A2/$E$1 -> -1.0876 | H2: =-B2/$E$3 -> 100000
A3: 27.18 | B3: -0.5 | D3: Cross sectional area (m2) | E3: 5e-06 | G3: =-A3/$E$1 -> -1.0872 | H3: =-B3/$E$3 -> 100000
A4: 27.18 | B4: -0.5 | G4: -1.0872 | H4: 100000
A5: 27.16 | B5: -0.5 | D5: Dataset Size | E5: 7981 | G5: -1.0864 | H5: 100000
A6: 27.14 | B6: -0.4 | G6: -1.0856 | H6: 80000
A7: 27.13 | B7: -0.5 | G7: -1.0852 | H7: 100000
A8: 27.12 | B8: -0.5 | G8: -1.0848 | H8: 100000
A9: 27.12 | B9: -0.5 | G9: -1.0848 | H9: 100000
A10: 27.1 | B10: -0.5 | G10: -1.084 | H10: 100000
A11: 27.09 | B11: -0.5 | G11: -1.0836 | H11: 100000
A12: 27.08 | B12: -0.5 | G12: -1.0832 | H12: 100000
A13: 27.06 | B13: -0.5 | G13: -1.0824 | H13: 100000
A14: 27.06 | B14: -0.5 | G14: -1.0824 | H14: 100000
A15: 27.05 | B15: -0.5 | G15: -1.082 | H15: 100000
A16: 27.04 | B16: -0.5 | G16: -1.0816 | H16: 100000
A17: 27.02 | B17: -0.6 | G17: -1.0808 | H17: 120000
A18: 27.01 | B18: -0.6 | G18: -1.0804 | H18: 120000
A19: 27 | B19: -0.6 | G19: -1.08 | H19: 120000
A20: 26.98 | B20: -0.6 | G20: -1.0792 | H20: 120000
A21: 26.97 | B21: -0.6 | G21: -1.0788 | H21: 120000
A22: 26.96 | B22: -0.6 | G22: -1.0784 | H22: 120000
A23: 26.95 | B23: -0.6 | G23: -1.078 | H23: 120000
A24: 26.94 | B24: -0.6 | G24: -1.0776 | H24: 120000
A25: 26.93 | B25: -0.6 | G25: -1.0772 | H25: 120000
A26: 26.91 | B26: -0.7 | G26: -1.0764 | H26: 140000
A27: 26.9 | B27: -0.7 | G27: -1.076 | H27: 140000
A28: 26.9 | B28: -0.7 | G28: -1.076 | H28: 140000
A29: 26.88 | B29: -0.7 | G29: -1.0752 | H29: 140000
A30: 26.88 | B30: -0.7 | G30: -1.0752 | H30: 140000
A31: 26.87 | B31: -0.7 | G31: -1.0748 | H31: 140000
A32: 26.86 | B32: -0.7 | G32: -1.0744 | H32: 140000
A33: 26.85 | B33: -0.7 | G33: -1.074 | H33: 140000
A34: 26.83 | B34: -0.8 | G34: -1.0732 | H34: 160000
A35: 26.82 | B35: -0.8 | G35: -1.0728 | H35: 160000
A36: 26.82 | B36: -0.8 | G36: -1.0728 | H36: 160000
A37: 26.8 | B37: -0.8 | G37: -1.072 | H37: 160000
A38: 26.79 | B38: -0.8 | G38: -1.0716 | H38: 160000
A39: 26.78 | B39: -0.8 | G39: -1.0712 | H39: 160000
A40: 26.77 | B40: -0.8 | G40: -1.0708 | H40: 160000
A41: 26.76 | B41: -0.8 | G41: -1.0704 | H41: 160000
A42: 26.75 | B42: -0.8 | G42: -1.07 | H42: 160000
A43: 26.74 | B43: -0.8 | G43: -1.0696 | H43: 160000
A44: 26.73 | B44: -0.9 | G44: -1.0692 | H44: 180000
A45: 26.72 | B45: -0.9 | G45: -1.0688 | H45: 180000
A46: 26.71 | B46: -0.9 | G46: -1.0684 | H46: 180000
A47: 26.7 | B47: -0.9 | G47: -1.068 | H47: 180000
A48: 26.69 | B48: -0.9 | G48: -1.0676 | H48: 180000
A49: 26.68 | B49: -0.9 | G49: -1.0672 | H49: 180000
A50: 26.67 | B50: -0.9 | G50: -1.0668 | H50: 180000
A51: 26.66 | B51: -0.9 | G51: -1.0664 | H51: 180000
A52: 26.65 | B52: -0.9 | G52: -1.066 | H52: 180000
A53: 26.64 | B53: -0.9 | G53: -1.0656 | H53: 180000
A54: 26.59 | B54: -1 | G54: -1.0636 | H54: 200000
A55: 26.59 | B55: -1 | G55: -1.0636 | H55: 200000
A56: 26.58 | B56: -1 | G56: -1.0632 | H56: 200000
A57: 26.56 | B57: -1 | G57: -1.0624 | H57: 200000
A58: 26.55 | B58: -1 | G58: -1.062 | H58: 200000
A59: 26.54 | B59: -1 | G59: -1.0616 | H59: 200000
A60: 26.5 | B60: -1.1 | G60: -1.06 | H60: 220000
A61: 26.49 | B61: -1.1 | G61: -1.0596 | H61: 220000
A62: 26.47 | B62: -1.1 | G62: -1.0588 | H62: 220000
A63: 26.46 | B63: -1.1 | G63: -1.0584 | H63: 220000
A64: 26.45 | B64: -1.1 | G64: -1.058 | H64: 220000
A65: 26.44 | B65: -1.1 | G65: -1.0576 | H65: 220000
A66: 26.43 | B66: -1.1 | G66: -1.0572 | H66: 220000
A67: 26.42 | B67: -1.2 | G67: =-A67/$E$1 -> -1.0568 | H67: =-B67/$E$3 -> 240000
A68: 26.41 | B68: -1.2 | G68: -1.0564 | H68: 240000
A69: 26.39 | B69: -1.2 | G69: -1.0556 | H69: 240000
A70: 26.39 | B70: -1.2 | G70: -1.0556 | H70: 240000
A71: 26.37 | B71: -1.2 | G71: -1.0548 | H71: 240000
A72: 26.37 | B72: -1.2 | G72: -1.0548 | H72: 240000
A73: 26.36 | B73: -1.2 | G73: -1.0544 | H73: 240000
A74: 26.34 | B74: -1.2 | G74: -1.0536 | H74: 240000
A75: 26.33 | B75: -1.2 | G75: -1.0532 | H75: 240000
A76: 26.33 | B76: -1.2 | G76: -1.0532 | H76: 240000
A77: 26.31 | B77: -1.3 | G77: -1.0524 | H77: 260000
A78: 26.3 | B78: -1.3 | G78: -1.052 | H78: 260000
A79: 26.29 | B79: -1.3 | G79: -1.0516 | H79: 260000
A80: 26.29 | B80: -1.3 | G80: -1.0516 | H80: 260000
A81: 26.27 | B81: -1.3 | G81: -1.0508 | H81: 260000
A82: 26.26 | B82: -1.3 | G82: -1.0504 | H82: 260000
A83: 26.25 | B83: -1.3 | G83: -1.05 | H83: 260000
A84: 26.25 | B84: -1.3 | G84: -1.05 | H84: 260000
A85: 26.23 | B85: -1.3 | G85: -1.0492 | H85: 260000
A86: 26.22 | B86: -1.3 | G86: -1.0488 | H86: 260000
A87: 26.21 | B87: -1.3 | G87: -1.0484 | H87: 260000
A88: 26.19 | B88: -1.4 | G88: -1.0476 | H88: 280000
A89: 26.18 | B89: -1.4 | G89: -1.0472 | H89: 280000
A90: 26.17 | B90: -1.4 | G90: -1.0468 | H90: 280000
A91: 26.15 | B91: -1.4 | G91: -1.046 | H91: 280000
A92: 26.14 | B92: -1.4 | G92: -1.0456 | H92: 280000
A93: 26.12 | B93: -1.4 | G93: -1.0448 | H93: 280000
A94: 26.11 | B94: -1.4 | G94: -1.0444 | H94: 280000
A95: 26.11 | B95: -1.4 | G95: -1.0444 | H95: 280000
A96: 26.09 | B96: -1.4 | G96: -1.0436 | H96: 280000
A97: 26.09 | B97: -1.5 | G97: -1.0436 | H97: 300000
A98: 26.08 | B98: -1.5 | G98: -1.0432 | H98: 300000
A99: 26.06 | B99: -1.5 | G99: -1.0424 | H99: 300000
A100: 26.05 | B100: -1.5 | G100: -1.042 | H100: 300000
A101: 26.05 | B101: -1.5 | G101: -1.042 | H101: 300000
A102: 26.04 | B102: -1.5 | G102: -1.0416 | H102: 300000
A103: 26.02 | B103: -1.5 | G103: -1.0408 | H103: 300000
A104: 26.01 | B104: -1.5 | G104: -1.0404 | H104: 300000
A105: 26 | B105: -1.5 | G105: -1.04 | H105: 300000
A106: 25.99 | B106: -1.5 | G106: -1.0396 | H106: 300000
A107: 25.98 | B107: -1.6 | G107: -1.0392 | H107: 320000
A108: 25.97 | B108: -1.6 | G108: -1.0388 | H108: 320000
A109: 25.96 | B109: -1.6 | G109: -1.0384 | H109: 320000
A110: 25.95 | B110: -1.6 | G110: -1.038 | H110: 320000
A111: 25.93 | B111: -1.6 | G111: -1.0372 | H111: 320000
A112: 25.93 | B112: -1.6 | G112: -1.0372 | H112: 320000
A113: 25.91 | B113: -1.6 | G113: -1.0364 | H113: 320000
A114: 25.9 | B114: -1.6 | G114: -1.036 | H114: 320000
A115: 25.89 | B115: -1.6 | G115: -1.0356 | H115: 320000
A116: 25.88 | B116: -1.6 | G116: -1.0352 | H116: 320000
A117: 25.87 | B117: -1.6 | G117: -1.0348 | H117: 320000
A118: 25.87 | B118: -1.6 | G118: -1.0348 | H118: 320000
A119: 25.85 | B119: -1.7 | G119: -1.034 | H119: 340000
A120: 25.84 | B120: -1.7 | G120: -1.0336 | H120: 340000
A121: 25.83 | B121: -1.7 | G121: -1.0332 | H121: 340000
A122: 25.82 | B122: -1.7 | G122: -1.0328 | H122: 340000
A123: 25.81 | B123: -1.7 | G123: -1.0324 | H123: 340000
A124: 25.8 | B124: -1.7 | G124: -1.032 | H124: 340000
A125: 25.79 | B125: -1.7 | G125: -1.0316 | H125: 340000
A126: 25.77 | B126: -1.7 | G126: -1.0308 | H126: 340000
A127: 25.76 | B127: -1.7 | G127: -1.0304 | H127: 340000
A128: 25.76 | B128: -1.7 | G128: -1.0304 | H128: 340000
A129: 25.75 | B129: -1.7 | G129: -1.03 | H129: 340000
A130: 25.73 | B130: -1.8 | G130: -1.0292 | H130: 360000
A131: 25.72 | B131: -1.8 | G131: =-A131/$E$1 -> -1.0288 | H131: =-B131/$E$3 -> 360000
A132: 25.71 | B132: -1.8 | G132: -1.0284 | H132: 360000
A133: 25.7 | B133: -1.8 | G133: -1.028 | H133: 360000
A134: 25.7 | B134: -1.8 | G134: -1.028 | H134: 360000
A135: 25.68 | B135: -1.8 | G135: -1.0272 | H135: 360000
A136: 25.67 | B136: -1.8 | G136: -1.0268 | H136: 360000
A137: 25.66 | B137: -1.8 | G137: -1.0264 | H137: 360000
A138: 25.65 | B138: -1.8 | G138: -1.026 | H138: 360000
A139: 25.64 | B139: -1.8 | G139: -1.0256 | H139: 360000
A140: 25.63 | B140: -1.8 | G140: -1.0252 | H140: 360000
A141: 25.62 | B141: -1.9 | G141: -1.0248 | H141: 380000
A142: 25.6 | B142: -1.9 | G142: -1.024 | H142: 380000
A143: 25.6 | B143: -1.9 | G143: -1.024 | H143: 380000
A144: 25.58 | B144: -1.9 | G144: -1.0232 | H144: 380000
A145: 25.58 | B145: -1.9 | G145: -1.0232 | H145: 380000
A146: 25.57 | B146: -1.9 | G146: -1.0228 | H146: 380000
A147: 25.55 | B147: -1.9 | G147: -1.022 | H147: 380000
A148: 25.54 | B148: -1.9 | G148: -1.0216 | H148: 380000
A149: 25.53 | B149: -1.9 | G149: -1.0212 | H149: 380000
A150: 25.52 | B150: -1.9 | G150: -1.0208 | H150: 380000
A151: 25.52 | B151: -1.9 | G151: -1.0208 | H151: 380000
A152: 25.5 | B152: -2 | G152: -1.02 | H152: 400000
A153: 25.5 | B153: -2 | G153: -1.02 | H153: 400000
A154: 25.48 | B154: -2 | G154: -1.0192 | H154: 400000
A155: 25.47 | B155: -2 | G155: -1.0188 | H155: 400000
A156: 25.46 | B156: -2 | G156: -1.0184 | H156: 400000
A157: 25.46 | B157: -2 | G157: -1.0184 | H157: 400000
A158: 25.44 | B158: -2 | G158: -1.0176 | H158: 400000
A159: 25.43 | B159: -2 | G159: -1.0172 | H159: 400000
A160: 25.42 | B160: -2 | G160: -1.0168 | H160: 400000
A161: 25.41 | B161: -2 | G161: -1.0164 | H161: 400000
A162: 25.4 | B162: -2 | G162: -1.016 | H162: 400000
A163: 25.38 | B163: -2.1 | G163: -1.0152 | H163: 420000
A164: 25.38 | B164: -2.1 | G164: -1.0152 | H164: 420000
A165: 25.37 | B165: -2.1 | G165: -1.0148 | H165: 420000
A166: 25.36 | B166: -2.1 | G166: -1.0144 | H166: 420000
A167: 25.34 | B167: -2.1 | G167: -1.0136 | H167: 420000
A168: 25.33 | B168: -2.1 | G168: -1.0132 | H168: 420000
A169: 25.32 | B169: -2.1 | G169: -1.0128 | H169: 420000
A170: 25.32 | B170: -2.1 | G170: -1.0128 | H170: 420000
A171: 25.31 | B171: -2.1 | G171: -1.0124 | H171: 420000
A172: 25.29 | B172: -2.1 | G172: -1.0116 | H172: 420000
A173: 25.28 | B173: -2.2 | G173: -1.0112 | H173: 440000
A174: 25.28 | B174: -2.1 | G174: -1.0112 | H174: 420000
A175: 25.26 | B175: -2.2 | G175: -1.0104 | H175: 440000
A176: 25.25 | B176: -2.2 | G176: -1.01 | H176: 440000
A177: 25.24 | B177: -2.2 | G177: -1.0096 | H177: 440000
A178: 25.24 | B178: -2.2 | G178: -1.0096 | H178: 440000
A179: 25.22 | B179: -2.2 | G179: -1.0088 | H179: 440000
A180: 25.2 | B180: -2.2 | G180: -1.008 | H180: 440000
A181: 25.2 | B181: -2.2 | G181: -1.008 | H181: 440000
A182: 25.18 | B182: -2.2 | G182: -1.0072 | H182: 440000
A183: 25.17 | B183: -2.2 | G183: -1.0068 | H183: 440000
A184: 25.16 | B184: -2.2 | G184: -1.0064 | H184: 440000
A185: 25.16 | B185: -2.2 | G185: -1.0064 | H185: 440000
A186: 25.14 | B186: -2.2 | G186: -1.0056 | H186: 440000
A187: 25.14 | B187: -2.3 | G187: -1.0056 | H187: 460000
A188: 25.12 | B188: -2.3 | G188: -1.0048 | H188: 460000
A189: 25.1 | B189: -2.3 | G189: -1.004 | H189: 460000
A190: 25.1 | B190: -2.3 | G190: -1.004 | H190: 460000
A191: 25.08 | B191: -2.3 | G191: -1.0032 | H191: 460000
A192: 25.08 | B192: -2.3 | G192: -1.0032 | H192: 460000
A193: 25.07 | B193: -2.3 | G193: -1.0028 | H193: 460000
A194: 25.05 | B194: -2.3 | G194: -1.002 | H194: 460000
A195: 25.04 | B195: -2.3 | G195: =-A195/$E$1 -> -1.0016 | H195: =-B195/$E$3 -> 460000
A196: 25.04 | B196: -2.3 | G196: -1.0016 | H196: 460000
A197: 25.02 | B197: -2.4 | G197: -1.0008 | H197: 480000
A198: 25.01 | B198: -2.4 | G198: -1.0004 | H198: 480000
A199: 25 | B199: -2.4 | G199: -1 | H199: 480000
A200: 24.99 | B200: -2.4 | G200: -0.9996 | H200: 480000
... 7718 more rows
